{"text_format":"1","workbook":"xlsx","n_sheets":23,"sheets":["Cover Page","Contents","Facility Info","Operational Summary","Operational Data","Perf. Form 1","Energy Form 1","Permit Compliance","Improvements","Public Liasion","Residue Quality ","CO2 N2O","Water","Air (periodic)","Air (CEMS)","HCl","SO2","NOx","TOC","Particulates","CO 0.5 hourly","CO 95% 10 min","NH3"],"not_rendered":{"charts":8,"images":4,"macros":1,"external_links":0,"defined_names":23,"comments":0,"pivot_tables":0},"unopened":[],"bounds":{"document_bytes":16777216,"sheet_cells":100000,"rows_first":2000,"rows_last":500,"rows_between":2000,"halvings":0,"cell_chars":16384,"cell_head_chars":4096},"cells_cut":0,"cells_raw":0,"read":"whole","date_system":"1900"}

{"sheet":"Cover Page","index":0,"n_rows":53,"n_cols":18,"rows_kept":53,"cut":false,"hidden":false,"merged":[[48,2,48,3],[48,6,48,8],[52,2,52,3],[36,1,36,8],[40,2,40,8],[42,2,42,4],[44,2,44,4],[46,2,46,3],[46,6,46,8],[13,13,18,15],[34,1,34,8],[0,3,5,6],[7,1,23,8],[28,1,28,8],[30,1,30,8],[32,1,32,8]]}
[null,null,null,"Add company logo"]
[null,null,null,null,null,null,null,null,null,null,null,null,null,"Version 23.4a (for incinerators) - 15/11/2023"]
[]
[null,null,null,null,null,null,null,null,null,null,null,null,null,"Note that there is another version of this template available for co-incinerators"]
[]
[]
[]
[null,"Add photo"]
[]
[]
[]
[]
[null,null,null,null,null,null,null,null,null,null,null,null,null,"Notes:"]
[null,null,null,null,null,null,null,null,null,null,null,null,null,"This template may require adjustments by individual operators to meet specific reporting requirements as defined in the site Permit(s)"]
[]
[]
[]
[]
[]
[]
[]
[]
[]
[]
[]
[]
[]
[]
[null,"Annual Performance Report 2023"]
[null,null,null,null,null,null,null,null,null,null,null,null,null,null,null,null,null,"i"]
[null,"Permit EPR/NP3638ZS"]
[]
[null,"Peterborough Energy Recovery Facility"]
[]
[]
[]
[null,"Viridor Peterborough Ltd"]
[]
[null,"Year:",2023]
[]
[null,"Address:","Fourth Drove,Peterborough, PE1 5UR"]
[]
[null,"Tel: ","01733 465284"]
[]
[null,"Email: ","kdjones@viridor.co.uk"]
[]
[null,"Prepared by:","K Jones",null,null,"Position:","EHS Manager"]
[]
[null,"Approved by:","C Knowles",null,null,"Position:","Plant Manager"]
[]
[null,"Version:"]
[]
[null,"Issue Date:","2023-11-01"]

{"sheet":"Contents","index":1,"n_rows":45,"n_cols":11,"rows_kept":45,"cut":false,"hidden":false,"merged":[[44,0,47,9],[37,1,37,6],[38,1,38,6],[39,1,39,6],[40,1,40,6],[41,1,41,6],[42,1,42,6],[36,1,36,6],[22,1,22,6],[23,1,23,6],[24,1,24,6],[27,1,27,6],[28,1,28,6],[29,1,29,6],[30,1,30,6],[31,1,31,6],[32,1,32,6],[35,1,35,6],[21,1,21,6],[9,1,9,6],[10,1,10,6],[11,1,11,6],[13,1,13,6],[14,1,14,6],[15,1,15,6],[16,1,16,6],[17,1,17,6],[18,1,18,6],[19,1,19,6],[20,1,20,6],[12,1,12,6],[4,10,7,14],[8,1,8,6],[3,1,3,6],[4,1,4,6],[5,1,5,6],[6,1,6,6],[7,1,7,6]]}
[{"$f":"+'Cover Page'!$B$29","v":"Annual Performance Report 2023"},null,null,null,{"$f":"+'Cover Page'!$B$33","v":"Peterborough Energy Recovery Facility"}]
[]
["Contents",null,null,null,null,null,null,null,null,null,"Notes:"]
["Section","Subject",null,null,null,null,null,"Page ",null,null,"Section references and Page nos. to be inserted"]
[null,"Facility Information",null,null,null,null,null,3,null,null,"Sections and Subjects may require adjustment by individual operators to meet specific reporting requirements as defined in the sites Permit(s)"]
[null,"Operational Data",null,null,null,null,null,"4-5."]
[null,"Operational Summary",null,null,null,null,null,6]
[null,"Performance Form 1",null,null,null,null,null,"7-8."]
[null,"Energy Form 1",null,null,null,null,null,9]
[null,"Permit Compliance",null,null,null,null,null,"10-11."]
[null,"Improvements",null,null,null,null,null,12]
[null,"Public Liasion",null,null,null,null,null,13]
[null,"Carbon dioxide and nitrous oxide emissions",null,null,null,null,null,14]
[null,"Residue Quality ",null,null,null,null,null,15]
[null,"Emissions to Water",null,null,null,null,null,16]
[null,"Emissions to Air (periodically monitored)",null,null,null,null,null,17]
[null,"Emissions to Air (continuously monitored)",null,null,null,null,null,18]
[null,"Hydrogen Chloride emissions",null,null,null,null,null,19]
[null,"Sulphur Dioxdie emsissions",null,null,null,null,null,20]
[null,"Oxides of Notrigen emissions",null,null,null,null,null,21]
[null,"Total Organic Carbon emissions",null,null,null,null,null,22]
[null,"Particulate Matter emissions",null,null,null,null,null,23]
[null,"Carbon Monoxide emissions",null,null,null,null,null,24]
[null,"Ammonia emissions",null,null,null,null,null,25]
[]
[]
["Version Control"]
["Section","Information",null,null,null,null,null,"Date"]
[]
[]
[]
[]
[]
[]
["Distribution"]
["Copy","Name, Role",null,null,null,null,null,"No."]
["cc","Christopher Knowles, Plant Manager"]
["cc","Salena Pass, EA Office"]
[]
[]
[]
[]
[]
[]
["This report is required under the Industrial Emissions Directive’s Article 55(2) requirements on reporting and public information on waste incineration plants and co-incineration plants, which require the operator to produce an annual report on the functioning and monitoring of the plant and make it available to the public. "]

{"sheet":"Facility Info","index":2,"n_rows":22,"n_cols":11,"rows_kept":22,"cut":false,"hidden":false,"merged":[[4,0,17,8],[21,0,53,8],[4,10,13,13],[21,10,30,13]]}
[{"$f":"+'Cover Page'!$B$29","v":"Annual Performance Report 2023"},null,null,null,{"$f":"+'Cover Page'!$B$33","v":"Peterborough Energy Recovery Facility"}]
[]
["Plant Description and Design",null,null,null,null,null,null,null,null,null,"Notes:"]
[]
["Peterborough Energy from Waste (EfW) facility is located on the eastern side of Peterborough and occupies an area of 4.5 hectares within the Fengate Industrial Estate, approximately 2.5km south-east of the city centre. The ERF enables the city of Peterborough and area to divert about 110,000 (Variation to increased from 85,000) tonnes of residual waste from landfill each year.\n\nThe facility is a single line plant which has a capacity for 110,000 tonnes per year and generates electricity (on average 8.5-8.8MWh) to be used internally and exported to the National Grid. The facility design and layout of the steam turbine allows for potential heat export to local users, a small district heating scheme was commissioned in March 2017 serving Dodson House (next door building owned by Peterborough City Council) although this is currently dormant.\n\nViridor Energy Ltd are contracted by Viridor Peterborough Ltd to operate and maintain the plant on their behalf and that of Peterborough City Council.",null,null,null,null,null,null,null,null,null,"Include summary of plant design, design capacity, no. of combustion lines, electrical and heat capacity and any other general information that descibes the facility, its location and purpose "]
[]
[]
[]
[]
[]
[]
[]
[]
[]
[]
[]
[]
[]
[]
["Summary of Operational Processes and Procedures"]
[]
["Incoming refuse collection vehicles and bulk transport vehicles enter the site and proceed to the incoming weighbridge. After weighing in, the vehicles continue to the enclosed reception hall where they will discharge their load into the waste storage bunker.\n\nVehicle loads are inspected randomly in the Tipping Hall to confirm the nature of incoming waste.\nOnce vehicles have deposited their waste they leave the site via a second weighbridge.\nPotential emissions of odour and dust from the tipping hall and refuse bunkers are controlled\nby forced draught fans located above the refuse bunkers. These draw air from the bunker hall\nand reception area into the furnace to feed the combustion process, creating a slight negative\npressure. An mist odour supression system complements this.\n\nThe waste combustion takes place on a Volund Dynagrate the heat generated being used to create superheated steam which is used to drive the steam turbine and generate electricity. Heat from turbine bleeds can be used for combined heat and power systems and is also used for pre-heating of combustion air and operation of the deaerator to maximise efficiency.\n\nCondensing of the steam takes place via air cooled condensing system and the condensate cycles back around in a closed system (other than necessary top up).\n\nEmission control is via injection of ammonia into the furnace for NOx control via SNCR technology. At the end of the boiler and gas path lime and activated carbon are added to remove acidic gases, dioxins, furans and heavy metals before this is all filtered by a bag filter system which removes the lime and carbon added and particulates from the combustion process producing APCr. Emissions are measured continuously in stack and by extractive stack measurements as required by the environmental permit.\n\nResidues from the process, IBA and APCr are both sent to specialist reprocessing sites. IBA has metals removed for recyling and is reprocessed into IBAA (Incinerator Bottom Ash Aggregate). The APCr is sent to OCO Technology (formally Carbon8) who use accelerated cabonation technology to produce a carbon negative aggregate material which encapsulates the absorbed substances from the APCr.\nMaintenance is controlled by a CMMS system and consists of planned preventative maintenance (ppm), derived from both experience of the plant and OEM requirements, and reactive maintenance. An annual shutdown period happens each summer during which maintenance and statutory inspections are carried out.\n\nThe plant operates a document control system meeting the requirements of the Viridor document management system and ISO 9001, 14001, 45001 and 50001",null,null,null,null,null,null,null,null,null,"Include summary of key processes and procedures such as (but not limited to); waste reception, control rooms, grate, bed and bolier, energy & heat  generation, cooling systems, residue management, emission controls, health and safety systems, maintenance"]

{"sheet":"Operational Summary","index":3,"n_rows":31,"n_cols":11,"rows_kept":31,"cut":false,"hidden":false,"merged":[[4,0,26,8],[30,0,51,8],[4,10,13,13],[30,10,39,13]]}
[{"$f":"+'Cover Page'!$B$29","v":"Annual Performance Report 2023"},null,null,null,{"$f":"+'Cover Page'!$B$33","v":"Peterborough Energy Recovery Facility"}]
[]
["Summary of Plant Operations and Maintenance during the reporting year",null,null,null,null,null,null,null,null,null,"Notes:"]
[]
["Turbine run time 1929.1 hours for Q1\nCombustion time 1959.7 hours for Q1\nAPCR produced 447.84 Tonnes for Q1                                                                                               IBA produced 4307 Tonnes for Q1\nTotal waste recieved  21,912 Tonnes   with 1.6 Tonnes rejected for Q1                                \nOther waste removed 456.77 haz and non-hazardous Tonnes for the year.                                                                                                                                                                                                                                                                                                                                                                                                                                          Q1:-                                                                                                                                                                                                                                                                                                                                                                                                                                                                                                                                                            January, the plant had a planned outage to  carryout investigational work/remedial repairs on a failed slag-pusher, and incline conveyor  for a toal of 196.5 hours.                                                                                                                                                                                                                             March, planned outage for 3.75 hours to service the cranes.                                                                Q2:                                                                                                                                                April:-15/04/2023. HCI exceedence. 3 abnormal operating hours, details  submitted to EA officer 26/04/2023                                                                                                                                    June:- 05/06/2023, SO2  exceedence. 1/2 hour abnormal operations , details submitted to EA officer 12/07/2023(following investigation for SO2 exceedence 04/07/2023)                                                                                         June:- 11/06/20223, Dust exceedence. 1/2 hour abnormal operations, details submitted to EA officer 14/06/2023.                                                                                                                                   June:-14/06/2023 HCI exceedence, 2 hours of abnormal operations. Details submtted to EA Officer 22/06/2023.                                                                                                                                     Q3.                                                                                                                                               July:- 04/07/2023 SO2 exceedence,1/2 hr abnormal operations,details submitted to EA officer 12/07/2023                                     July:- CEM's sofware annual inspection.                                                                                      September:- 4th - 19th Outage. back online 1 day early, 18th September.                                                              Q4  Oct - Nov carried out NOx trials.                                                                                                        November 24th. SO2 breach and Notification 5 submitted within 24 hours.   14.7 total hours unplanned downtime due to blocked grate riddlings conveyor (9hours) and waste crane issues (5.7  hours)",null,null,null,null,null,null,null,null,null,"Include summary of key operational and/or mainteanance activity undertaken in the year, such as any major component upgrades and/or replacements "]
[]
[]
[]
[]
[]
[]
[]
[]
[]
[]
[]
[]
[]
[]
[]
[]
[]
[]
[]
[]
[]
[]
[]
["Summary of Residue Handling for the reporting year"]
[]
["Johnsons Agrgregatescollect thee IBA. They remove and recycle the ferrous and non-ferrous metals and then create IBAA (Incinerator Bottom Ash Aggregate) from the remaining material. Their Aggregates team then utilise this in various construction and highways projects.\n\nAPCr is collected by direct transfer from the on site silo into transport tanker by Grundons and goes to the O.C.O Technology Ltd (formally Carbon8) site at Brandon (EPR/JP3332FK) (unless not possible due to operational issues at OCO in which case it is directed to one of their other plants) where it is taken through their accelerated carbonation technology. These carbonated wastes are blended with binders and fillers and pellitised to form an aggregate.                                                                                                                                                                                         In November, to support the NOx trials, additional IBA and APCr samples were taken for comparative analysis, including  Ammoniacal Nitrogen Sampling. These samples were sent to WRc and nrm.                                                                                                                                                                                                                                                                                                                    PBR ERF was also involved in trials of  POP containing plastics and their impact on emissions and residues. These extra samples were sent to Wrc",null,null,null,null,null,null,null,null,null,"Include in here a summary of residue handling regimes and destinations "]

{"sheet":"Operational Data","index":4,"n_rows":72,"n_cols":11,"rows_kept":72,"cut":false,"hidden":false,"merged":[[5,9,7,9],[35,1,51,1],[3,1,3,2],[7,1,21,1],[25,1,28,1],[30,1,31,1],[9,9,22,9],[23,9,27,9]]}
[{"$f":"+'Cover Page'!$B$29","v":"Annual Performance Report 2023"},null,null,null,{"$f":"+'Cover Page'!$B$33","v":"Peterborough Energy Recovery Facility"}]
[]
["Operational Data"]
["Plant Size",110000,null,"tonnes pa",28,"MWth",9,"MWe",null,"Notes:"]
["No. of combustion lines",1,null,"No. of Turbines:",null,1,null,null,null,"* - RDF to include SRF "]
[null,null,null,null,null,null,null,null,null,"** - Combusted tonnage = tonnes delivered in period + (tonnes in bunker at start of period – tonnes in bunker at end of period), or equivalent calculation depending on plant type"]
["Waste types received","Unit","Q1","Q2","Q3","Q4","Year Total","%"]
["Household / Local Authority 20 03 07","tonnes",1205,428.56,198.62,77.739999999999995,{"$f":"SUM(C8:F8)","v":1909.9199999999998},{"$f":"IF(G8>0,G8/$G$20,\"-\")","v":2.2184384582298745E-2}]
["Commercial & Industrial 20 03 07",null,null,7.49,10.46,15.12,{"$f":"SUM(C9:F9)","v":33.07},3.8411954329847304E-4,null,"*** - CHP plants only"]
["Hazardous ",null,0,0,0,0,0,"-",null,"**** Availability Definition: 'the availability of a line is to be calculated by the number of hours the line reported Continuously Monitored emission levels to the Regulator through the calendar year divided by the total number of hours in that year. \n\nThe overall plant availability is calculated as the Mean of all lines in the plant. For clarity this includes periods of abnormal operation.'  \n\nRationale: The primary function of an Energy from Waste facility is the disposal of waste. It follows therefore that the availability of a plant is determined by the period of time a facility spends undertaking this activity."]
["Clinical 18 01 04",null,1790,3405,1848,2802.68,9845.68,0.11436099501248594]
["Waste wood (biomass) N/A",null,0,0,0,0,0,"-"]
["Refuse Derived Fuel * - H'hold/LA 19 12 12",null,1486,1005,1260,1256.02,{"$f":"SUM(C13:F13)","v":5007.0200000000004},5.8158277462543713E-2]
["Refuse Derived Fuel *  - C&I 19 12 12",null,null,null,null,405.8,405.8,4.7135080335808993E-3]
["Household / Local Authority 20 03 01",null,12460,13292.64,12593.06,10876.72,49222.42,0.57173551528411315]
["commercial & industrial 20 03 01",null,4847.6499999999996,3649.05,3776.74,6620.8,18894.240000000002,0.21946316419025524]
["Industrial street cleaning 20 03 03",null,123.34,229,41,21.52,414.86,4.8187430823345787E-3]
["Commercial & Industrial 20 01 39 plastics",null,0,0,0,359.98,359.98,4.1812928090893351E-3]
[null,null,0,0,0,0,0,"-"]
["Total waste received",null,{"$f":"SUM(C8:C19)","v":21911.99},{"$f":"SUM(D8:D19)","v":22016.739999999998},{"$f":"SUM(E8:E19)","v":19727.879999999997},{"$f":"SUM(F8:F19)","v":22436.379999999997},86092.989999999991,1]
["Rejected Waste ",null,1.6,null,null,null,{"$f":"SUM(C21:F21)","v":1.6},1.8584556071289896E-5]
["Unprocessed waste transferred out",null,283,null,null,null,{"$f":"SUM(C22:F22)","v":283},3.2871433551094E-3]
["Total waste combusted **",null,21077,21585,18709,24090.2,{"$f":"SUM(C23:F23)","v":85461.2},0.99266153957482495]
[null,null,null,null,null,null,null,null,null,"Password for protected cells\nA password has been set to prevent accidental  editing of cells with formulae. \nIf you still need to make an edit for some reason then the password = 1234"]
["Energy Usage / Export","Unit","Q1","Q2","Q3","Q4","Year Total","KWh/te"]
["Power Generated","MWh",14854,13169,13793,17733,{"$f":"SUM(C26:F26)","v":59549},{"$f":"IF(G26>0,G26*1000/$G$23,\"-\")","v":696.79573888501454},null,null,"NOTE:- clinical line 18 01 04 is non-haz offensive waste"]
["Power Exported",null,13083,11287,11927,15761,{"$f":"SUM(C27:F27)","v":52058},{"$f":"IF(G27>0,G27*1000/$G$23,\"-\")","v":609.14192639466796},null,null,"Approval given for acccepting 18 01 07 under RPS C23"]
["Power Used on site",null,1725,1729,1708,1973,{"$f":"SUM(C28:F28)","v":7135},{"$f":"IF(G28>0,G28*1000/$G$23,\"-\")","v":83.488179431133659}]
["Power Imported",null,59,153.08000000000001,0,0,212.08,{"$f":"IF(G29>0,G29*1000/$G$23,\"-\")","v":2.4815939865108376}]
["Parasitic Load","%",{"$f":"IF(C26>0,1-C27/(C26+C29),\"-\")","v":0.12271172802253072},{"$f":"IF(D26>0,1-D27/(D26+D29),\"-\")","v":0.15275992938039706},{"$f":"IF(E26>0,1-E27/(E26+E29),\"-\")","v":0.13528601464510981},{"$f":"IF(F26>0,1-F27/(F26+F29),\"-\")","v":0.11120509784018495},{"$f":"IF(G26>0,1-G27/(G26+G29),\"-\")","v":0.12889793825680529}]
["Thermal Energy Produced ***","MWh",null,null,null,null,{"$f":"SUM(C31:F31)","v":0},{"$f":"IF(G31>0,G31*1000/$G$23,\"-\")","v":"-"}]
["Thermal Energy Exported ***",null,null,null,null,null,0,{"$f":"IF(G32>0,G32*1000/$G$23,\"-\")","v":"-"}]
["R1 value (if applicable)","R1",0.8,0.8,0.8,0.8]
[]
["Waste Disposal & Recovery","Unit","Q1","Q2","Q3","Q4","Year Total","% inputs",null,"NB"]
["19 01 07* APC Residues - produced","tonnes",447.84,483.44,417.02,397.76,{"$f":"SUM(C36:F36)","v":1746.06},{"$f":"IF(G36>0,G36/$G$23,\"-\")","v":2.0431026009463945E-2},null,"APCr 20T to landfill D5"]
["19 01 12 IBA - produced",null,4307,4331.57,4291.1400000000003,4986.8599999999997,17916.57,{"$f":"IF(G37>0,G37/$G$23,\"-\")","v":0.20964566376320481}]
["13 01 11* Synthetic Hydraulic oils",null,4,0,0,0,4,4.6804865833852092E-5]
["13 02 05* mineral based, non-chlorinated engine, gear & lubricating oils",null,1.5,0,0,1.8,3.3,3.8614014312927972E-5]
["13 05 03* Interceptor sludge",null,107.8,0,25,37.799999999999997,170.60000000000002,1.996227527813792E-3]
["15 01 06 mixed packaging",null,0.04,0,0,0,0.04,4.6804865833852091E-7]
["16 06 01* lead acid batteries",null,0,0,0,0,0,"-"]
["17 09 04*** Mixed construction/demolition ",null,0.6,0,2.38,0,2.98,3.4869625046219807E-5,"xx xx xx**","Mirror haz"]
["19 12 11** other waste(incl mixtures of materials) from mechanical treatment of waste containing hazardous substance",null,0.2,0,0,0,0.2,2.3402432916926045E-6,"xx xx xx***","mirror non"]
["19 12 12*** other waste incl mixtures of materials",null,326.24,0,0,0,326.24,3.8174048574089767E-3]
["20 01 21* fluorescent tubes & other mercury containing waste",null,0,0,2.1000000000000001E-2,0,2.1000000000000001E-2,2.4572554562772347E-7]
["20 01 23* Equipment containing CFC's (fridge)",null,0,0,0,0,0,"-"]
["20 01 35* WEEE",null,0,0,4.2999999999999997E-2,0,4.2999999999999997E-2,5.0315230771390987E-7]
["20 01 40 metal recyling ",null,16.239999999999998,0,25.86,11.7,53.8,6.2952544546531061E-4]
["20 03 01 Mixed municiple",null,1.6,0,0,0,1.6,1.8721946333540836E-5]
["16 01 14* antifreeze fluids containing hazaredous substances",null,0,0,0,4.4999999999999998E-2,4.4999999999999998E-2,5.2655474063083594E-7]
[null,null,{"$f":"SUM(C36:C51)","v":5213.0600000000004},{"$f":"SUM(D36:D51)","v":4815.0099999999993},{"$f":"SUM(E36:E51)","v":4761.463999999999},{"$f":"SUM(F36:F51)","v":5435.9650000000001},20225.499,{"$f":"IF(G52>0,G52/$G$23,\"-\")","v":0.2366629417794274}]
[]
["Raw Material Usage","Unit","Q1","Q2","Q3","Q4","Year Total","kg or Ltr /te"]
["Mains Water","ltrs",10210000,12831000,11542000,14045000,{"$f":"SUM(C55:F55)","v":48628000},{"$f":"IF(G55>0,G55/$G$23,\"-\")","v":569.00675394213988}]
["Other Water - domestic use","ltrs",8072,157000,115000,318000,598072,{"$f":"IF(G56>0,G56/$G$23,\"-\")","v":6.998169929745897}]
["Ammonia","kgs",66190.98,40357.300000000003,39528.29,70160,216236.57,2.5302309118055915]
[null,"kgs",null,null,null,null,{"$f":"SUM(C58:F58)","v":0},"-",null,"kgs ammonia calculated from volume using density ammonia soution = .911"]
["Activated Carbon","kgs",6970,7230,7150,9330,30680,0.35899332094564551]
["hydrated lime","kgs",227040,258100,227960,330730,1043830,12.214080775837456]
["Furnace Flame - for burners","ltrs",29876,146618,68627,25330,270451,3.164605692407783]
["Diesel for yellow plant and generator (and hired compressors)","ltrs",3820,3801,17701,47669,72991,0.85408349051967447]
["other   "]
[]
["Summary ","Line/Unit","Q1","Q2","Q3","Q4","Year Total",null,"Hrs in year "]
["Availability of waste combustion by line, hrs ****",{"$f":"+B5","v":1},1959.7,1896.16,1781.5,2118,{"$f":"SUM(C66:F66)","v":7755.3600000000006},{"$f":"+G66/$I$66","v":0.88531506849315078},8760]
["Hours of turbine operations, hrs",1,1929.1,1882.27,1454.5,2092,7357.87,{"$f":"+G67/$I$66","v":0.83993949771689491}]
["Hours of heat / steam export",null,null,null,null,null,0,{"$f":"IF(B68>0,#REF!/I66,\"n/a\")","v":"n/a"}]
["Net Calorific Value of waste","MJ/kg",9.4,8.16,9.4,8.58,35.54,{"$f":"SUM(C69:F69/4)","v":8.8849999999999998}]
["Abnormal Events","qty.",0,5,0,0,5,{"$f":"IF(G70>0,\"yes\",\"no\")","v":"yes"}]
["Abnormal operation","hours",0,6.5,0,0,6.5,{"$f":"+(G71)/I66","v":7.4200913242009135E-4}]
["Permit Breaches","qty.",0,0,0,1,1,{"$f":"IF(G72>0,\"yes\",\"no\")","v":"yes"}]

{"sheet":"Perf. Form 1","index":5,"n_rows":61,"n_cols":10,"rows_kept":61,"cut":false,"hidden":false,"merged":[[54,0,54,1],[56,0,56,9],[57,0,58,9],[45,0,45,9],[46,0,47,9],[50,0,50,1],[50,2,50,9],[52,0,52,1],[53,0,53,1],[42,0,42,3],[42,4,42,5],[42,7,42,8],[44,0,44,3],[44,4,44,5],[44,7,44,8],[40,0,40,3],[40,4,40,5],[40,7,40,8],[41,0,41,3],[41,4,41,5],[41,7,41,8],[43,0,43,3],[43,4,43,5],[43,7,43,8],[37,0,37,3],[37,7,37,8],[38,0,38,3],[38,4,38,5],[38,7,38,8],[39,0,39,3],[39,4,39,5],[39,7,39,8],[29,0,29,3],[29,4,29,5],[29,6,29,7],[29,8,29,9],[31,0,31,9],[32,0,34,9],[26,0,26,1],[26,2,26,3],[26,4,26,5],[26,6,26,7],[26,8,26,9],[28,0,28,3],[28,4,28,5],[28,6,28,7],[28,8,28,9],[27,0,27,1],[27,2,27,3],[27,4,27,5],[27,6,27,7],[27,8,27,9],[24,0,24,1],[24,2,24,3],[24,4,24,5],[24,6,24,7],[24,8,24,9],[25,0,25,1],[25,2,25,3],[25,4,25,5],[25,6,25,7],[25,8,25,9],[22,0,22,1],[22,2,22,3],[22,4,22,5],[22,6,22,7],[22,8,22,9],[23,0,23,1],[23,2,23,3],[23,4,23,5],[23,6,23,7],[23,8,23,9],[20,0,20,1],[20,2,20,3],[20,4,20,5],[20,6,20,7],[20,8,20,9],[21,0,21,9],[19,0,19,3],[19,4,19,5],[19,6,19,7],[19,8,19,9],[11,0,11,1],[11,2,11,3],[11,4,11,5],[11,6,11,7],[11,8,11,9],[12,0,12,1],[12,2,12,3],[12,4,12,5],[12,6,12,7],[12,8,12,9],[9,0,9,9],[10,0,10,1],[10,2,10,3],[10,4,10,5],[10,6,10,7],[10,8,10,9],[2,0,2,4],[2,6,2,8],[3,1,3,4],[5,3,5,4],[5,6,5,7],[8,0,8,1],[8,2,8,3],[8,4,8,5],[8,6,8,7],[8,8,8,9],[13,0,13,1],[17,0,17,1],[18,0,18,1],[13,2,13,3],[17,2,17,3],[18,2,18,3],[13,6,13,7],[17,6,17,7],[18,6,18,7],[14,0,14,1],[14,2,14,3],[14,4,14,5],[14,6,14,7],[15,0,15,1],[15,2,15,3],[16,0,16,1],[16,2,16,3],[15,6,15,7],[16,6,16,7]]}
[{"$f":"+'Cover Page'!C39","v":2023}," Annual Reporting Performance Form 1"]
[]
[{"$f":"+'Cover Page'!B31","v":"Permit EPR/NP3638ZS"},null,null,null,null,"Operator: ",{"$f":"+'Cover Page'!B37:I37","v":0}]
["Facility:",{"$f":"+'Cover Page'!B33:I33","v":"Peterborough Energy Recovery Facility"},null,null,null,"Form:","Performance 1"]
[]
["Reporting  Period from: ",null,null,"2023-01-01",null,"to:","2023-12-31"]
[]
[{"$f":"+A1","v":2023},"Annual Reporting of Waste Disposal and Recovery"]
["Waste Description",null,"Disposal Route(s)",null,"Disposal Tonnes",null,"Recovery Tonnes",null,"% / tonne of waste incinerated"]
["1) Hazardous Wastes"]
["19 01 07 APC Residues",null,"OCO Tecnology",null,null,null,{"$f":"'Operational Data'!G36","v":1746.06},null,{"$f":"IF((E11+G11)>0,(E11+G11)/'Operational Data'!$G$23, \"-\")","v":2.0431026009463945E-2}]
["13 01 11 Synthetic Hydraulic Oil",null,"Augean",null,null,null,{"$f":"'Operational Data'!G38","v":4},null,{"$f":"IF((E12+G12)>0,(E12+G12)/'Operational Data'!$G$23, \"-\")","v":4.6804865833852092E-5}]
["13 02 05 mineral based , non-chlorinated engine oil",null,"LWOL",null,null,null,{"$f":"'Operational Data'!G39","v":3.3},null,{"$f":"IF((E13+G13)>0,(E13+G13)/'Operational Data'!$G$23, \"-\")","v":3.8614014312927972E-5}]
["13 05 03 interceptor sludge",null,"Augean",null,null,null,{"$f":"'Operational Data'!G40","v":170.60000000000002}]
["16 06 01 Lead acid batteries",null,"LWOL",null,null,null,{"$f":"'Operational Data'!G42","v":0}]
["19 12 11 other waste ",null,"PCC",null,null,null,{"$f":"'Operational Data'!G44","v":0.2}]
["20 01 21 flourescent tubes ",null,"Blackmore Ricotech",null,null,null,{"$f":"'Operational Data'!G46","v":2.1000000000000001E-2}]
["20 01 23 equipment containing CFC's (fridge)",null,"LWOL",null,null,null,{"$f":"'Operational Data'!G47","v":0}]
["20 01 35 WEEE",null,"Blackmore Ricotech",null,null,null,{"$f":"'Operational Data'!G48","v":4.2999999999999997E-2}]
["Total Hazardous Waste",null,null,null,{"$f":"SUM(E11:F19)","v":0},null,{"$f":"SUM(G11:H19)","v":1924.2239999999999},null,{"$f":"IF((E20+G20)>0,(E20+G20)/'Operational Data'!$G$23, \"-\")","v":2.2515761538569549E-2}]
[]
["2) Non-Hazardous Wastes"]
["19 01 12 IBA",null,"Johnsons",null,null,null,{"$f":"'Operational Data'!G37","v":17916.57},null,{"$f":"IF((E23+G23)>0,(E23+G23)/'Operational Data'!$G$23, \"-\")","v":0.20964566376320481}]
["15 01 06 mixed packaging",null,"PCC",null,null,null,{"$f":"'Operational Data'!G41","v":0.04},null,{"$f":"IF((E24+G24)>0,(E24+G24)/'Operational Data'!$G$23, \"-\")","v":4.6804865833852091E-7}]
["17 09 04 Mixed construction",null,"Bourne Skips",null,null,null,{"$f":"'Operational Data'!G43","v":2.98},null,{"$f":"IF((E25+G25)>0,(E25+G25)/'Operational Data'!$G$23, \"-\")","v":3.4869625046219807E-5}]
["19 12 12 other waste incl mixtures of materials",null,"Bourne Skips",null,null,null,{"$f":"'Operational Data'!G45","v":326.24},null,{"$f":"IF((E26+G26)>0,(E26+G26)/'Operational Data'!$G$23, \"-\")","v":3.8174048574089767E-3}]
["20 01 40 metal recycling",null,"Simms",null,null,null,{"$f":"'Operational Data'!G49","v":53.8},null,{"$f":"IF((E27+G27)>0,(E27+G27)/'Operational Data'!$G$23, \"-\")","v":6.2952544546531061E-4}]
["20 03 01 mixed municiple ",null,"PCC",null,null,null,1.6,null,{"$f":"IF((E28+G28)>0,(E28+G28)/'Operational Data'!$G$23, \"-\")","v":1.8721946333540836E-5}]
["Total Non-Hazardous Waste",null,null,null,{"$f":"SUM(E23:F27)","v":0},null,{"$f":"SUM(G23:H28)","v":18301.23},null,{"$f":"IF((E29+G29)>0,(E29+G29)/'Operational Data'!$G$23, \"-\")","v":0.21414665368611721}]
["TOTAL WASTE",null,null,null,{"$f":"+E29+E20","v":0},null,{"$f":"+G29+G20","v":20225.453999999998},null,{"$f":"IF((E30+G30)>0,(E30+G30)/'Operational Data'!$G$23, \"-\")","v":0.23666241522468673}]
[]
["Operator’s comments :"]
[]
[]
[]
[]
[{"$f":"+A1","v":2023},"Annual Reporting of Water and Other Raw Material Usage"]
["Raw Material",null,null,null,"Usage",null,"Unit","Specific Useage",null,"Unit"]
["Mains Water",null,null,null,{"$f":"+'Operational Data'!G55","v":48628000},null,"m3",{"$f":"IF(E39>0,E39/'Operational Data'!$G$23,\"-\")","v":569.00675394213988},null,"m3/te"]
["Total Water",null,null,null,{"$f":"+'Operational Data'!G56+'Operational Data'!G55","v":49226072},null,"m3",{"$f":"IF(E40>0,E40/'Operational Data'!$G$23,\"-\")","v":576.00492387188569},null,"m3/te"]
[" Ammonia",null,null,null,{"$f":"+'Operational Data'!G57","v":216236.57},null,"kg",{"$f":"IF(E41>0,E41/'Operational Data'!$G$23,\"-\")","v":2.5302309118055915},null,"kg/te"]
["Activated Carbon",null,null,null,{"$f":"+'Operational Data'!G59","v":30680},null,"kg",{"$f":"IF(E42>0,E42/'Operational Data'!$G$23,\"-\")","v":0.35899332094564551},null,"kg/te"]
["Lime ",null,null,null,{"$f":"+'Operational Data'!G60","v":1043830},null,"kg",{"$f":"IF(E43>0,E43/'Operational Data'!$G$23,\"-\")","v":12.214080775837456},null,"kg/te"]
["Combined fuel oil (Burners and plant use)",null,null,null,{"$f":"+'Operational Data'!G63","v":0},null,"lt",{"$f":"IF(E44>0,E44/'Operational Data'!$G$23,\"-\")","v":"-"},null,"kg/te"]
[]
["Operator’s comments :"]
[]
[]
[]
[{"$f":"+A37","v":2023},"Annual Reporting of other performance indicators "]
["Parameter",null,"Results by Line"]
[null,null,"A1","A2","A3","A4","A5",null,"Turbine 1","Turbine 2"]
["Operating hours for the year, hours",null,{"$f":"'Operational Data'!G66","v":7755.3600000000006},null,null,null,null,null,{"$f":"'Operational Data'!G67","v":7357.87}]
["Number of periods of abnormal operation, qty.",null,{"$f":"'Operational Data'!G70","v":5},null,null,null,null,null,{"$f":"'Operational Data'!G70","v":5}]
["Cumulative hours of abnormal operation for this year, hours",null,{"$f":"'Operational Data'!G71","v":6.5},null,null,null,null,null,{"$f":"'Operational Data'!G71","v":6.5}]
[]
["Operator’s comments :"]
["Q1                                                                                                                                                                                                                   Jan 196.50 hours downtime for plant failure  and 229.99 hours turbine tripped downtime.                                                                           Q2                                                                                                                                                                                                                 June 200.3 hours downtime for planned outage works on unavoidable failed plant.                                                                                           Q3                                                                                                                                                                                                                    July 16.5 hours downtime to remedy blockage in riddling conveyor and 10.33 turbine unavailability.                                              September 409.8 hours planned downtime for outage and 423.82 turbine offline.                                                                                        Q4                                                                                                                                                                                                                     14.5 hours planned downtime.  1 x SO2 breach Notification 5 submitted."]
[]
[]
["Signed: ","KDJones",null,null,null,null,"Date:","2024-01-26"]

{"sheet":"Energy Form 1","index":6,"n_rows":30,"n_cols":8,"rows_kept":30,"cut":false,"hidden":false,"merged":[[18,0,18,8],[19,0,25,8],[12,0,12,2],[15,3,15,4],[15,6,15,8],[16,3,16,4],[16,6,16,8],[14,0,14,2],[14,3,14,4],[14,6,14,8],[16,0,16,2],[12,3,12,4],[12,6,12,8],[15,0,15,2],[13,3,13,4],[13,6,13,8],[11,0,11,2],[11,3,11,4],[11,6,11,8],[13,0,13,2],[9,0,9,2],[9,3,9,4],[9,6,9,8],[10,0,10,2],[10,3,10,4],[10,6,10,8],[2,6,2,8],[4,1,4,4],[6,3,6,4],[6,6,6,7],[8,0,8,2],[8,3,8,4],[8,6,8,8]]}
[{"$f":"+'Cover Page'!C39","v":2023}," Annual Reporting of Energy Usage/Export"]
[]
[{"$f":"+'Cover Page'!B31","v":"Permit EPR/NP3638ZS"},null,null,null,null,"Operator: ",{"$f":"+'Cover Page'!B37:I37","v":0}]
[]
["Facility:",{"$f":"+'Cover Page'!B33:I33","v":"Peterborough Energy Recovery Facility"},null,null,null,"Form:","Energy 1"]
[]
["Reporting  Period from: ",null,null,{"$f":"+'Perf. Form 1'!D6:E6","v":"2023-01-01"},null,"to:",{"$f":"+'Perf. Form 1'!G6:H6","v":"2023-12-31"}]
[]
["Energy Source",null,null,"Energy Usage",null,"Unit","Specific Useage (KWh/tonne incinerated"]
["Electricity Produced",null,null,{"$f":"+'Operational Data'!G26","v":59549},null,"MWh",{"$f":"+'Operational Data'!H26","v":696.79573888501454}]
["Electricity Imported   ",null,null,{"$f":"+'Operational Data'!G29","v":212.08},null,"MWh",{"$f":"+'Operational Data'!H29","v":2.4815939865108376}]
["Electricity Exported",null,null,{"$f":"+'Operational Data'!G27","v":52058},null,"MWh",{"$f":"+'Operational Data'!H27","v":609.14192639466796}]
["Furnace flame for burners",null,null,{"$f":"('Operational Data'!G61*0.85)/1000","v":229.88335000000001},null,null,{"$f":"+'Operational Data'!G61","v":270451}]
["White diesel for yellow plant and generator",null,null,{"$f":"('Operational Data'!G62*0.85)/1000","v":62.042349999999999},null,"tonnes",{"$f":"+'Operational Data'!G62","v":72991}]
["Steam/hot water exported",null,null,"n/a",null,"GWh",{"$f":"+'Operational Data'!H32","v":"-"}]
["Gas",null,null,"n/a",null,"litres"]
[null,null,null,null,null,"litres"]
[]
["Operator’s comments :"]
["These figures reflect non-production during offline hours totalling 929.05 for the year(incl the outage)"]
[]
[]
[]
[]
[]
[]
[]
[]
[]
["Signed: ","KDJones",null,null,null,null,"Date:","2024-01-26"]

{"sheet":"Permit Compliance","index":7,"n_rows":35,"n_cols":12,"rows_kept":35,"cut":false,"hidden":false,"merged":[[24,1,24,3],[24,4,24,6],[24,7,24,8],[8,11,16,11],[27,0,27,10],[18,0,18,10],[23,1,23,3],[23,4,23,6],[23,7,23,9],[25,1,25,3],[25,4,25,6],[25,7,25,9],[21,1,21,3],[21,4,21,6],[21,7,21,9],[22,1,22,3],[28,1,28,3],[28,4,28,6],[28,7,28,9],[29,1,29,3],[29,4,29,6],[29,7,29,9],[33,1,33,3],[33,4,33,6],[33,7,33,9],[30,1,30,3],[30,4,30,6],[30,7,30,9],[31,1,31,3],[31,4,31,6],[31,7,31,9],[32,1,32,3],[32,4,32,6],[32,7,32,9],[22,4,22,6],[22,7,22,9],[19,1,19,3],[19,4,19,6],[19,7,19,9],[20,1,20,3],[20,4,20,6],[20,7,20,9],[14,0,14,1],[14,2,14,4],[14,5,14,8],[15,0,15,1],[16,2,16,4],[16,5,16,8],[15,2,15,4],[15,5,15,8],[16,0,16,1],[7,0,7,1],[7,2,7,8],[8,0,8,1],[8,2,8,4],[8,5,8,8],[34,4,34,8],[9,0,9,1],[9,2,9,4],[9,5,9,8],[10,0,10,1],[10,2,10,4],[10,5,10,8],[11,0,11,1],[11,2,11,4],[11,5,11,8],[12,0,12,1],[12,2,12,4],[12,5,12,8],[13,0,13,1],[13,2,13,4],[13,5,13,8]]}
[{"$f":"+'Cover Page'!$B$29","v":"Annual Performance Report 2023"},null,null,null,{"$f":"+'Cover Page'!$B$33","v":"Peterborough Energy Recovery Facility"}]
[]
["Summary of Permit Compliance"]
[]
["Compliance with permit limits for continuously monitored pollutants"]
[]
["The plant met its emission limits as shown in the table below:"]
["Substance",null,"Percentage time compliant during operationNote 1",null,null,null,null,null,null,null,null,"Notes:"]
[null,null,"Half-hourly limit",null,null,"Daily limit",null,null,null,null,null,"Note 1: Please report to 2 decimal places, i.e. xx.xx%\n\nNote 2: Please provide a brief summary of each notification or non-compliance in the table (rather than just referring to notifications that were sent to the Regulator), including stating the value of measured result for any ELV exceedances.   \n\n"]
["Particulates",null,"xx.xx %",null,null,"xx.xx %"]
["Oxides of nitrogen",null,"xx.xx %",null,null,"xx.xx %"]
["Sulphur dioxide",null,99.99,null,null,"xx.xx %"]
["Carbon monoxide",null,"xx.xx % or \nxx.xx% 95% of 10-min averages",null,null,"xx.xx %"]
["Total organic carbon",null,"xx.xx %",null,null,"xx.xx %"]
["Hydrogen chloride",null,"xx.xx %",null,null,"xx.xx %"]
["Hydrogen fluoride",null,"xx.xx %",null,null,"xx.xx %"]
[null,null,"xx.xx %",null,null,"xx.xx %"]
[]
["Summary of any notifications or non-compliances under the permit"]
["Date","Summary of notification or non-compliance [including Line/Reference]Note 2",null,null,"Reason ",null,null,"Measures taken to prevent reoccurrence"]
["2023-04-15","HCI limit 10mg/Nm3. CEM's reported a reading of 10.28.mg/Nm3",null,null,"abnormal operations for 3 hours following a technically unavoidable failure of abatement - lime build up causing a blockage in the hose.",null,null,"New PPM to have the hoese stripped and cleaned very 13 weeks. And a change to a quick release system for speed and ease of task."]
["2023-06-05","SO2 limit - 200mg/Nm3/hour. Measured level was 200.3mg/Nm3",null,null,"Abnormal operations for 1/2 hours following a technically unavoidable failure of abatement - lime screw reacted ,but the lime feed failed to pull through.",null,null,"bridging' took place in the silo. Manual bridge breaking to be included in shift changes as a preventative rather than a reactive."]
["2023-06-11","Dust limit - 10mg/Nm3. Measured level was 16.03nm/Nm3",null,null,"following a technically unavoidable failur of abatesment in the fabric filter bag house 1",null,null,"shut off fabric filter bag house 1 to undertake inspections and replace as necessary. Everyoutage the bag houses undergo an inspection. Iin the outage planned for 2023, all the bags will be replaced."]
["2023-06-14","HCI limit 10mg/Nm3. CEM's reported a reading of 11.03mg/Nm3",null,null,"unavoidable failure of abatement. 1 of 3 water injector lances was not working properly and the water was not vapourising a it should , instead it was running to the bottom onf the conditining tower,ponding and then being drawn into the lime delivery hose, wetting the lime and it was 'setting' like mortar, narrowing the  feed hose.",null,null,"All the atomisers were checked, the malfunctioning atomiser was replaced. All atomisers wil be replaced at the outage as a standard with the old ones being refurbished and added  to critical spares."]
["2023-07-04","SO2 limit - 30 min average 200mg/Nm3/hour. Measured level was 246.2mg/Nm3",null,null,"Abnormal operations for 1/2 hours following a technically unavoidable failure of abatement - lime screw reacted ,but the lime feed failed to pull through.",null,null,"This incident instigated a review of the response of the lime silo, lime screw andlime feed hose, which led us to find the abatement failure 05/06/2023, in addition to the 'bridge breaking' as a preventative, the lime silo content is to be closely monitored. Its thought that low levels may be in part adding to the problem. "]
["2023-11-24","SO2 llimit - 30 min average 200mg/Nm3/hour. Measured level was 215mg/Nm3",null,null,"Breached during the period 02:29 and 03:00 hours.",null,null,"Front end waste, undected quantities of plasterboard and  high volumes of plastic."]
[]
["Summary of any complaints received and actions to taken to resolve them."]
["Date","Summary of complaint [including Line/Reference]",null,null,"Reason *",null,null,"Measures taken to prevent reoccurrence"]
[null,"nil"]
[]
[]
[]
[]
[null,null,null,null,"* including whether substantiated by the operator or the EA"]

{"sheet":"Improvements","index":8,"n_rows":39,"n_cols":5,"rows_kept":39,"cut":false,"hidden":false,"merged":[[37,0,37,8],[38,0,47,8],[4,0,4,8],[5,0,13,8],[15,0,15,8],[16,0,24,8],[26,0,26,8],[27,0,35,8]]}
[{"$f":"+'Cover Page'!$B$29","v":"Annual Performance Report 2023"},null,null,null,{"$f":"+'Cover Page'!$B$33","v":"Peterborough Energy Recovery Facility"}]
[]
["Summary of Plant Improvements"]
[]
["Summary of any efficiency improvements that have been completed within the year."]
["mid year 2022 to date;-                                                                                                                          Project 1.replace al sodium lights with 100w LED's.      Complete.                                                                      Project 2 Fluorescents on level 1(canteen and EC&I office. Complete.                                                   Project 3. operational plant repalce  fluorescens with LED's s theyexpire- ongoing, approx around 10% completed.    Project 100% completion  by 31/03/2024 Financial savings to date estimated around £10k in the 12 months.       Energy saving to date estimated around 86,000,000 watts/year ongoing .    "]
[]
[]
[]
[]
[]
[]
[]
[]
[]
["Summary of any permit improvement conditions that have been completed within the year and the resulting environmental benefits."]
["Improvement requirements                                                                                                                      IC1 CAR for extension for submission. NOx trials. scheduled:- Trial1 16- 22 Oct, Trial2 23-29 Oct, Trial3 30 Oct - 5 Nov.                                                                                                                                          IC2 & IC3 Mercury & Dioxin  report submitted. 6 sets of triplicate mercury analysis have been completed:- 8/10/21, 05/4/22, 24/10/22, 28/10/22, 17/04/23, 02/05/23                                                                                                                                                                                                                                    November  IC1 improvement condition for report following NOx trials  submitted  and OTNOC Managment plan  V1 also submitted.          "]
[]
[]
[]
[]
[]
[]
[]
[]
[]
["Summary of any changes to the plant or operating techniques which required a variation to the permit and a summary of the resulting environmental impact."]
["nil"]
[]
[]
[]
[]
[]
[]
[]
[]
[]
["Summary of any other improvements made to the plant or planned to be made and a summary of the resulting environmental benefits."]
["nil"]

{"sheet":"Public Liasion","index":9,"n_rows":36,"n_cols":10,"rows_kept":36,"cut":false,"hidden":false,"merged":[[23,0,24,1],[23,2,24,8],[31,0,32,1],[31,2,32,8],[35,0,35,8],[17,0,18,1],[17,2,18,8],[19,0,20,1],[19,2,20,8],[21,0,22,1],[21,2,22,8],[16,0,16,1],[16,2,16,8],[5,0,5,1],[5,2,5,8],[6,0,7,1],[6,2,7,8],[8,0,9,1],[8,2,9,8],[10,0,11,1],[10,2,11,8],[12,0,13,1],[12,2,13,8],[15,0,15,8]]}
[{"$f":"+'Cover Page'!$B$29","v":"Annual Performance Report 2023"},null,null,null,{"$f":"+'Cover Page'!$B$33","v":"Peterborough Energy Recovery Facility"}]
[]
["Details of Public & Stakeholder Liasion"]
[]
["Summary of events held during the reporting year."]
["Date",null,"Description"]
["Bi Monthly",null,"client liaisons with peterborough City Council"]
[]
["Planned visits for April and November and as requested.",null,"Heritage open days for general public.. Organised school/college tours."]
[]
["Quarterly",null,"Viridor in Peterborough Meetings for the Viridor in Peterborough community fund - funding local projects based around sustainability, local need, community involvement, value for money and education"]
[]
[null,null,"We will hold community liaison meetings on request after no attendance by local companies or residents since August 2016."]
[]
[]
["List of events planned for next year"]
["Date",null,"Description"]
["JAN - MARCH",null,"The visitor Centre welcomed 19 separate visits from schools and colleges and group  members of the public. The visits wil continue into the year. The Education & Afmin Support Officer is looking into VR availability for persons who are not able to participate in site  'walk rounds'.",null,null,null,null,null,null,"Outreach"]
[]
["APRIL - JUNE",null,"Scheduled visits from business's including Railworld and Central Rail Systems Alliance for full plant tours."]
[]
["JULY",null,"5th & 6th  - school visit. 20th July PCC full plant tour. 25th Community visit."]
[]
["AUGUST",null,"4th WPS compliance consulting- full plant tour. 9th Community visit"]
[]
["SEPTEMBER",null,"outage- no visits planned"]
[]
["OCTOBER",null,"10th St Ives Rotary, 4th Veolia, 11th & 12th Biffa",null,null,null,null,null,null,"18th PCC recycle week."]
[null,null,"11th PCC Education officer"]
["NOVEMBER",null,"1st Community visit, 8th PCC, 20th Werington Scouts",null,null,null,null,null,null,"28th Hampton Lakes School"]
[]
["DECEMBER",null,null,null,null,null,null,null,null,"12th ARU"]
[null,null,null,null,null,null,null,null,null,"13th GPTUC"]
[]
[]
["If you wish to be involved in the public liasion programme, please contact Hayley Janceski hjanceski@viridor.co.uk tel/ 07880 299 734"]

{"sheet":"Residue Quality ","index":10,"n_rows":35,"n_cols":6,"rows_kept":35,"cut":false,"hidden":false,"merged":[[35,0,40,6],[32,3,32,4],[34,0,34,6],[27,0,28,1],[29,0,29,1],[30,0,30,1],[31,0,31,1],[32,0,32,1],[29,3,29,4],[30,3,30,4],[29,5,29,6],[30,5,30,6],[31,5,31,6],[32,5,32,6],[20,0,21,1],[20,2,21,6],[22,0,23,1],[22,2,23,6],[31,3,31,4],[27,2,28,2],[28,3,28,4],[28,5,28,6],[27,3,27,6],[26,0,26,6],[5,0,6,6],[7,0,8,6],[9,0,10,6],[14,0,15,1],[14,2,15,6],[16,0,17,1],[16,2,17,6],[18,0,19,1],[18,2,19,6],[12,0,12,6],[13,0,13,1],[13,2,13,6]]}
["ut",null,null,null,{"$f":"+'Cover Page'!$B$33","v":"Peterborough Energy Recovery Facility"}]
[]
["Residue Quality Monitoring Requirements"]
[]
["Summary of monitoring undertaken and compliance"]
["IBA undergoes quarterly sampling as required by permit condition 3.5.1c and table 3.5 including TOC, dioxins & furans. TOC has a limit of <3%."]
[]
["24 samples of IBA are taken each year (including the 4 permit complaince samples) to undergo basic hazard analysis as required by the ESA protocol."]
[]
["APCr is sampled quarterly as per permit condition 3.5.1c and table 3.5"]
[]
[]
["Commentary on any specific events"]
["Date & Event",null,"Description"]
["3 - 19th Sept 2023",null,"Outage"]
[]
["16 -22 Oct, 23-29 Oct, 30 Oct-5 Nov",null,"3 NOx trials as per the permit requirement. Report submitted 29 Novemeber 2023"]
[]
[]
[]
[]
[]
[]
[]
[]
[]
["Residue Quality Monitoring Results"]
["Parameter (unit) ",null,"Limit","Normal Operation "]
[null,null,null,"Bottom ash  ",null,"APC Residues"]
["Loss on Ignition (average %)",null,"<5%","n/a"]
["Total Organic Carbon (average %)",null,"<3%",0.3]
["No. of Assessments Undertaken",null,"---","1 permit compliance  6 ESA hazard assessments. Multiple TKN and Ammonicacal assessments for the Nox trials.",null,"Multiple TKN and Ammonicacal assessments for the Nox trials."]
["No. of Hazardous Results",null,"---","nil"]
[]
["Comments :"]

{"sheet":"CO2 N2O","index":11,"n_rows":23,"n_cols":6,"rows_kept":23,"cut":false,"hidden":false,"merged":[[20,2,20,3],[23,1,23,3],[16,2,16,3],[4,0,4,3],[9,0,9,3],[17,0,17,3],[13,0,13,3],[12,0,12,1],[8,2,8,3],[11,2,11,3]]}
[{"$f":"+'Cover Page'!$B$29","v":"Annual Performance Report 2023"},null,{"$f":"+'Cover Page'!$B$33","v":"Peterborough Energy Recovery Facility"}]
[]
["Carbon dioxide emissions and biogenic content of waste inputs",null,null,null,null,"Notes:"]
[]
["Carbon dioxide emissions (all types of plant)"]
[null,"Annual mass of carbon dioxide released","tonnes ",96363.8,null,"Q1 - 23,127.6   Q2 - 20,330  Q3 - 20,852  Q4-32054.8"]
[null,"Annual mass of carbon dioxide released per tonne of waste burned","t CO2 / t waste ",1.1000000000000001,null,"Q1 1.055   Q2 - 0.923  Q3 1.06  Q4 1.1"]
[null,"Annual mass of carbon dioxide released per MWh of energy exported","t CO2 / MWh export ",1.99,null,"Q1 - 1.56  Q2 - 1.54   Q3 - 1.5  Q4 - 1.8"]
[null,"Description of how annual carbon dioxide mass emission has been calculated. \nSee Note 1","Annual mass of Carbon Dioxide release – \nCO2 Avg. Concentration for month x 19.6 x Avg. Flow rate for month (m3/hr) / 1000 / 1000 x Burn hours + For each month within the year = Total Mass of CO2 for year.\nExamle January 2023: \n14.04% x 19.6 = 275.184\n275.184 x 45465.25 = 12,511,309.35\n112,511,309.35 / 1000 / 1000 = 12.51130 tons of CO2 per hour                                                                                              12.511 x 547.5(hours in the month - downtime of 196.5 hours) = 6,849.772                                                                                                                                                                                           \n\n\nAnnual mass of Carbon Dioxide release per tonne of waste burned – \nExample January 2023: 6849.772/6017 (tonnes of waste processed in January) = 1.13840319.   ",null,null,"Note 1: Where available, data from CO2 CEMS should be used. \nOtherwise, only where no CEMS data is available, a suitable emissions factor should be used based on the tonnage of waste burned e.g.0.942 tCO2/t waste as per Tolvik report 2022, or other justified emissions factor  - refer to embedded Environment Agency guidance note above or updated version for suitable descriptive text."]
["Nitrous oxide emissions (only plants which use ammonia or urea to abate NOx emissions)"]
[null,"Annual mass emissions of nitrous oxide","tonnes N2O",7.0000000000000007E-2,null,"Q1 -  0.068   Q2 - 0.063  Q3-0.075  Q4-0.075"]
[null,"Description of how annual nitrous oxide mass emission has been calculated\nSee Note 2","When calculating the mass ofpollutants relased, the concentration of the gas is multipled by the flue as flow rate to produce a value interms of mg/hour or second. A factor is held withing the software to convert this to a measurement of Kg/hr, thi sis held within the GroupCFG.db as the 2 Flow x\" variable and may be set individually for each measurement point. Depending upon the units of flow measurement- the following factors are typcial m3/hour - factor = 1E-6(0.000001) or m3/s - Factor = 3.6x 10-3(0.0036).                                                                                                                       In all calculations, a negative flue gas is set to zero. This is to prevent a negative offset on teh flow mwasurement from erroneously reducing the mass emissions over a long period. We then multiply the mg/hour by the number of burns hours to produce the total mass for the pollutant. NOx Emissions \nTotal annual mass emissions of Nitrous Oxide\nNOx Avg. Concentration for month x Avg. Flow rate for month (m3/hr) / 1,000,000\nExample January 2023:\n116.7 x 45465.25 = 5,305,794.675\n5,305,794.675 / 1,000,000 = 5.305794675kg per hour\n5.305794675 x 547.5 = 2,907.225kg.                                                                                                                                             Convert to Tonnes. 2,907.225/1000 = 2.907225                                                                                                                      \n",null,null,"Note 2: Where available, data from N2O CEMS should be used. \nIf no CEMS data is available, from periodic monitoring. Otherwise, a suitable emissions factor should be used based on the tonnage of waste burned e.g. 0.0981 kgN20/t waste as per 2021 Pollution Inventory data for plants with urea-based SNCR - refer to embedded Environment Agency guidance note above or updated version for suitable descriptive text."]
["Total annual carbon dioxide and nitrous oxide emissions. \nSee Note 3. ",null,"tonnes CO2e",96427.3,"Q1 mass of N2O 20,120.96kg/1000 = 20.12T + 23,127.6T(of Co2)= 23,147.72T                                                            Q2 mass of N2O 18,648.84kg/1000=18.65T + 20,330.0 T(of Co2) 20,348.65T                            Q3 mass of N2O 22379.8 kg/1000 = 22.40T +20,852T (of CO2) =20,865.45T                           Q4 mass of N2O 22454.3 kg/1000 = 22.50 + 32054.8 T(of CO2) = 32,076.5T","Note 3: Total annual carbon dioxide and nitrous oxide emissions reported as carbon dioxide equivalent where 1 tonne nitrous oxide is equivalent to 298 tonne carbon dioxide"]
["Biogenic CO2 emissions (See Note 4)",null,null,null,null,"Note 4: Only plants combusting residual municipal waste, refuse derived fuel or solid recovered fuel"]
[null,"Percentage of total carbon dioxide emissions arising from biogenic waste","%",0.45700000000000002]
[null,"No. of measurements undertaken","Number",1]
[null,"Description of how percentage biogenic carbon dioxide emissions have been measured or calculated.\nSee Note 5","The method used for determining biomass is the selective dissolution method as defined in BS EN ISO 21644:2021. This method involves treatment of the sample with concentrated sulphuric acid and hydrogen peroxide. Generally, the biomass in the sample will selectively dissolve leaving a non-biomass residue. The original mass of sample and mass of residue are measured. The result is calculated from the mass values and the ash content to give a result in %.",null,null,"Note 5: Examples include direct measurement via C14 method or BIOMA software - refer to embedded Environment Agency guidance note above or updated version for suitable descriptive text, quoting standards where relevant. \nOtherwise, as an approximation (and in lieu of any more accurate metrics which may be developed in future), the measured or estimated biogenic fraction by net calorific value can be assumed to be the same as the biogenic CO2 fraction of the total CO2 emissions from the plant. "]
["Biogenic fraction of waste feedstock (See Note 4)"]
[null,"Yearly average biogenic percentage of the waste by net calorific value (NCV)","%"," "]
[null,"If sampling undertaken, no. of samples used to ascertain average biogenic % above","Number",1]
[null,"Description of how biogenic percentage (by NCV) has been calculated or estimated. \nSee Note 6","The method used for determining biomass is the selective dissolution method as defined in BS EN ISO 21644:2021. This method involves treatment of the sample with concentrated sulphuric acid and hydrogen peroxide. Generally, the biomass in the sample will selectively dissolve leaving a non-biomass residue. The original mass of sample and mass of residue are measured. The result is calculated from the mass values and the ash content to give a result in %.",null,null,"Note 6: Where available, data from waste sampling should be used; otherwise, an estimated figure with justification can be used, or a figure assumed on the basis of a national average e.g. 2017 WRAP data for residual waste of 51.8% biogenic energy content - refer to embedded Environment Agency guidance note above or updated version for suitable descriptive text, quoting standards where relevant. "]
[]
[null,"Comments:"]

{"sheet":"Water","index":12,"n_rows":25,"n_cols":9,"rows_kept":25,"cut":false,"hidden":false,"merged":[[29,0,29,2],[29,3,29,4],[26,0,26,2],[26,3,26,4],[27,0,27,2],[27,3,27,4],[28,0,28,2],[28,3,28,4],[23,0,23,2],[23,3,23,4],[24,0,24,2],[24,3,24,4],[25,0,25,2],[25,3,25,4],[21,0,21,8],[22,0,22,2],[22,3,22,4],[14,0,15,1],[14,2,15,8],[16,0,17,1],[16,2,17,8],[18,0,19,1],[18,2,19,8],[5,0,6,8],[7,0,8,8],[9,0,10,8],[12,0,12,8],[13,0,13,1],[13,2,13,8]]}
[{"$f":"+'Cover Page'!$B$29","v":"Annual Performance Report 2023"},null,null,null,{"$f":"+'Cover Page'!$B$33","v":"Peterborough Energy Recovery Facility"}]
[]
["Emissions to Water"]
[]
["Summary of monitoring undertaken and compliance"]
["Samples and visual checks undertaken monthly. The Penstocks remains closed unless otherwise directed. "]
[]
["Qtr PPM operational checks on the penstock gate valves."]
[]
[]
[]
[]
["Commentary on any specific events"]
["Date & Event",null,"Description"]
[]
[]
[]
[]
[]
[]
[]
["Emissions to Water / Sewer"]
["Parameter",null,null,"Monitoring Frequency",null,"Limit","Target","Max.","Average"]
["PBERFS1 to combined sewer",null,null,"monthly",null,">50mg/l"]
["PBERFW1 to watercourse",null,null,"monthly",null,">1000mg/l"]

{"sheet":"Air (periodic)","index":13,"n_rows":39,"n_cols":13,"rows_kept":39,"cut":false,"hidden":false,"merged":[[13,10,14,12],[15,10,16,10],[15,11,16,11],[15,12,16,12],[18,3,18,4],[13,3,13,4],[14,3,14,4],[15,3,15,4],[16,3,16,4],[17,3,17,4],[21,3,21,4],[22,3,22,4],[23,3,23,4],[24,3,24,4],[31,3,31,4],[25,3,25,4],[26,3,26,4],[28,3,28,4],[38,0,38,9],[19,0,19,1],[20,0,20,1],[21,0,21,1],[34,3,34,4],[35,3,35,4],[33,0,33,1],[34,0,34,1],[35,0,35,1],[36,0,36,1],[24,0,24,1],[32,3,32,4],[27,3,27,4],[33,3,33,4],[19,3,19,4],[20,3,20,4],[39,0,40,9],[25,0,25,1],[26,0,26,1],[22,0,22,1],[23,0,23,1],[37,0,37,1],[27,0,27,1],[28,0,28,1],[29,0,29,1],[30,0,30,1],[31,0,31,1],[32,0,32,1],[37,3,37,4],[29,3,29,4],[30,3,30,4],[36,3,36,4],[16,0,16,1],[17,0,17,1],[18,0,18,1],[13,0,13,1],[14,0,14,1],[15,0,15,1],[12,0,12,1],[11,3,11,4],[12,3,12,4],[9,0,10,1],[9,5,9,9],[9,3,10,4],[9,2,10,2],[5,10,8,13],[9,10,11,13],[8,0,8,9],[5,0,6,9],[11,0,11,1]]}
[{"$f":"+'Cover Page'!$B$29","v":"Annual Performance Report 2023"},null,null,null,{"$f":"+'Cover Page'!$B$33","v":"Peterborough Energy Recovery Facility"}]
[]
["Emissions to Air (periodically monitored)"]
[]
["Summary of monitoring undertaken, standards used and compliance",null,null,null,null,null,null,null,null,null,"Notes:"]
[null,null,null,null,null,null,null,null,null,null,"Template may require adjustment for any bespoke monitoring requirements of permit - please also check that all default ELV values, reference periods and the stated oxygen reference value match those for your plant, and edit if necessary!"]
[]
[]
["Results of emissions to air that are periodically monitored - oxygen reference 6% "]
["Substance",null,"Ref. Period","Emission Limit Value*",null,"Average",null,null,null,null,"User to add additional tables as necessary, depending on whether quarterly or bi-annual reporting is required for the compliance year"]
[null,null,null,null,null,"A1","A2","A3","A4","A5"]
["Hydrogen fluoride",null,"1 hr","2 mg/m3",null,0.13,"<0.02"]
["Cd and Th and their compounds",null,"0.5-8hrs","0.05 mg/m3",null,1.5E-3,1E-3]
["Hg and its compounds",null,"0.5-8hrs","0.05 mg/m3",null,1E-3,2.5999999999999999E-2,null,null,null,"* Denotes limits that were in force until 2 December 2023; from 3 December 2023 the following new limits applied (those not listed remained unchanged):"]
["Sb, As, Pb, Cr, Co, Cu, Mn, Ni, V and their compounds",null,"0.5-8hrs","0.5 mg/m3",null,0.31,0.03]
["Dioxins & Furans (I-TEQ)",null,"6-8hrs","0.1 ng/m3",null,1.5E-3,1.4E-3,null,null,null,"Substance","Reference Period","Emission Limit Value"]
["PCBs (WHO-TEQ Humans / Mammals)",null,"6-8hrs","None set ng/m3",null,1.8000000000000001E-4,1.4999999999999999E-4]
["PCBs (WHO-TEQ Fish)",null,"6-8hrs","None set ng/m3",null,1.5E-5,1.0000000000000001E-5,null,null,null,"Hydrogen fluoride","Average of three consecutive measurements of at least 30 minutes each","1 mg/m3"]
["PCBs (WHO-TEQ Birds)",null,"6-8hrs","None set ng/m3",null,8.1999999999999998E-4,3.2299999999999998E-3,null,null,null,"Cd and Th and their compounds","Average of three consecutive measurements of at least 30 minutes each","0.02 mg/m3"]
["Dioxins & Furans (WHO-TEQ Humans / Mammals)",null,"6-8hrs","None set ng/m3",null,"0.0015 - 0.0016","0.0014 - 0.0014",null,null,null,"Hg and its compounds","Average of three consecutive measurements of at least 30 minutes each","0.02 mg/m3"]
["Dioxins & Furans (WHO-TEQ Fish)",null,"6-8hrs","None set ng/m3",null,"0.0016 - 0.0017","0.0013 - 0.0014",null,null,null,"Sb, As, Pb, Cr, Co, Cu, Mn, Ni, V and their compounds","Average of three consecutive measurements of at least 30 minutes each","0.3 mg/m3"]
["Dioxins & Furans (WHO-TEQ Birds)",null,"6-8hrs","None set ng/m3",null,"0.0023 - 0.0024","0.0035 - 0.0036",null,null,null,"Dioxins & Furans (I-TEQ)","6-8hrs","0.06 ng/m3"]
["Anthanthrene",null,"6-8hrs","None set µg/m3",null,0,0]
["Benzo(a)anthracene",null,"6-8hrs","None set µg/m3",null,0,0]
["Benzo(a)pyrene",null,"6-8hrs","None set µg/m3",null,0.01,0.01]
["Benzo(b)fluoranthene",null,"6-8hrs","None set µg/m3",null,0,0]
["Benzo(b)naptho(2,1-d) thiophene",null,"6-8hrs","None set µg/m3",null,0,0]
["Benzo(c)phenanthrene",null,"6-8hrs","None set µg/m3",null,"<0.0018","<0.0018"]
["Benzo(ghi)perylene",null,"6-8hrs","None set µg/m3",null,0.03,0.03]
["Benzo(k)fluoranthene",null,"6-8hrs","None set µg/m3",null,0,0]
["Cholanthrene",null,"6-8hrs","None set µg/m3",null,"<0.0018","<0.0018"]
["Chrysene",null,"6-8hrs","None set µg/m3",null,0.01,0.01]
["Cyclopenta(cd)pyrene",null,"6-8hrs","None set µg/m3",null,"<0.0018","<0.0018"]
["Dibenzo(ai)pyrene",null,"6-8hrs","None set µg/m3",null,"<0.0018","<0.0018"]
["Dibenzo(ah)anthracene",null,"6-8hrs","None set µg/m3",null,"<0.0018","<0.0018"]
["Fluoranthene",null,"6-8hrs","None set µg/m3",null,0.08,0.08]
["Indeno(123-cd) pyrene",null,"6-8hrs","None set µg/m3",null,0.01,0.01]
["Naphthalene",null,"6-8hrs","None set µg/m3",null,0.16,0.16]
["Comments :"]

{"sheet":"Air (CEMS)","index":14,"n_rows":29,"n_cols":16,"rows_kept":29,"cut":false,"hidden":false,"merged":[[29,0,30,12],[13,0,14,0],[5,0,6,12],[7,0,8,12],[10,0,10,12],[11,0,12,0],[11,2,12,2],[11,1,12,1],[11,3,11,4],[11,5,11,6],[11,7,11,8],[11,9,11,10],[11,11,11,12],[14,13,15,13],[14,14,15,14],[14,15,15,15],[12,13,13,15],[27,0,27,12]]}
[{"$f":"+'Cover Page'!$B$29","v":"Annual Performance Report 2023"},null,null,null,null,null,null,null,{"$f":"+'Cover Page'!$B$33","v":"Peterborough Energy Recovery Facility"}]
[]
["Emissions to Air (continously monitored)"]
[null,null,null,null,null,null,null,null,null,null,null,null,null,"Notes:"]
["Summary of monitoring undertaken, standards used and compliance",null,null,null,null,null,null,null,null,null,null,null,null,"Template may require adjustment for any bespoke monitoring requirements of permit"]
[null,null,null,null,null,null,null,null,null,null,null,null,null,"Please check that all default ELV values match those for your plant and edit if necessary!"]
[null,null,null,null,null,null,null,null,null,null,null,null,null,"Report to 1 decimal place"]
[]
[]
[]
["Results of emissions to air that are continuously monitored (maximum and average values for each line) - oxygen reference 11%"]
["Substance","Reference Period","Emission Limit Value**","A1",null,"A2",null,"A3",null,"A4",null,"year"]
[null,null,null,"Max.","Avg.","Max.","Avg.","Max.","Avg.","Max.","Avg.","Max.","Avg.","** Denotes limits that were in force until 2 December 2023; from 3 December 2023 the following new limits applied (those not listed remained unchanged):"]
["Oxides of nitrogen","Daily mean","200 mg/m3 ",{"$f":"MAX(NOx!O7:O9)","v":124.8},{"$f":"AVERAGE(NOx!N7:N9)","v":116.43333333333334},{"$f":"MAX(NOx!O10:O12)","v":127.4},{"$f":"AVERAGE(NOx!N10:N12)","v":114.13333333333333},{"$f":"MAX(NOx!O13:O15)","v":120},{"$f":"AVERAGE(NOx!N13:N15)","v":105.39999999999999},{"$f":"MAX(NOx!O16:O18)","v":122.5},{"$f":"AVERAGE(NOx!N16:N18)","v":105.5},{"$f":"NOx!O19","v":127.4},{"$f":"NOx!N19","v":110.36666666666667}]
[null,"½ hourly mean","400 mg/m3 ",{"$f":"MAX(NOx!M7:M9)","v":173.2},{"$f":"AVERAGE(NOx!L7:L9)","v":116.46666666666668},{"$f":"MAX(NOx!M10:M12)","v":268.39999999999998},{"$f":"AVERAGE(NOx!L10:L12)","v":113.96666666666665},{"$f":"MAX(NOx!M13:M15)","v":218.7},{"$f":"AVERAGE(NOx!L13:L15)","v":105.5},{"$f":"MAX(NOx!M16:M18)","v":199},{"$f":"AVERAGE(NOx!L16:L18)","v":105.53333333333335},{"$f":"NOx!M19","v":268.39999999999998},{"$f":"NOx!L19","v":110.36666666666666},"Substance","Reference Period","Emission Limit Value"]
["Particulates","Daily mean","10 mg/m3",{"$f":"MAX(Particulates!O7:O9)","v":8.6999999999999993},{"$f":"AVERAGE(Particulates!N7:N9)","v":4},{"$f":"MAX(Particulates!O10:O12)","v":9.3000000000000007},{"$f":"AVERAGE(Particulates!N10:N13)","v":2.6},{"$f":"MAX(Particulates!O13:O15)","v":5.2},{"$f":"AVERAGE(Particulates!N10:N13)","v":2.6},{"$f":"MAX(Particulates!O16:O18)","v":3.1},{"$f":"AVERAGE(Particulates!N10:N13)","v":2.6},{"$f":"Particulates!O19","v":9.3000000000000007},{"$f":"Particulates!N19","v":2.0749999999999997}]
[null,"½ hourly mean","30 mg/m3 ",{"$f":"MAX(Particulates!M7:M9)","v":19.7},{"$f":"AVERAGE(Particulates!L7:L9)","v":4.0666666666666664},{"$f":"MAX(Particulates!M10:M12)","v":33.799999999999997},{"$f":"AVERAGE(Particulates!L10:L12)","v":3.1666666666666665},{"$f":"MAX(Particulates!M13:M15)","v":24.4},{"$f":"AVERAGE(Particulates!L13:L15)","v":0.63333333333333341},{"$f":"MAX(Particulates!M16:M18)","v":10.6},{"$f":"AVERAGE(Particulates!L16:L18)","v":0.76666666666666661},{"$f":"Particulates!M19","v":33.799999999999997},{"$f":"Particulates!L19","v":2.1583333333333337},"Oxides of nitrogen","Daily mean","180 mg/m3 "]
["Total Organic Carbon ","Daily mean","10 mg/m3 ",{"$f":"MAX(TOC!O7:O9)","v":0.8},{"$f":"AVERAGE(TOC!L7:L9)","v":0.43333333333333335},{"$f":"MAX(TOC!O10:O12)","v":0.6},{"$f":"AVERAGE(TOC!L10:L12)","v":0.40000000000000008},{"$f":"MAX(TOC!O13:O15)","v":1.1000000000000001},{"$f":"AVERAGE(TOC!L13:L15)","v":0.46666666666666662},{"$f":"MAX(TOC!O16:O18)","v":0.7},{"$f":"AVERAGE(TOC!L16:L18)","v":0.5},{"$f":"TOC!O19","v":1.1000000000000001},{"$f":"TOC!N19","v":0.40833333333333327},"Particulates","Daily mean","5 mg/m3 "]
[null,"½ hourly mean","20 mg/m3 ",{"$f":"MAX(TOC!M7:M9)","v":11.1},{"$f":"AVERAGE(TOC!L7:L9)","v":0.43333333333333335},{"$f":"MAX(TOC!M10:M12)","v":3.3},{"$f":"AVERAGE(TOC!L10:L11)","v":0.4},{"$f":"MAX(TOC!M13:M15)","v":11.4},{"$f":"AVERAGE(TOC!L12:L15)","v":0.45},{"$f":"MAX(TOC!M16:M18)","v":3.3},{"$f":"AVERAGE(TOC!L16:L18)","v":0.5},{"$f":"TOC!M19","v":11.4},{"$f":"TOC!L19","v":0.44999999999999996},"Hydrogen chloride","Daily mean","8 mg/m3 "]
["Hydrogen chloride ","Daily mean","10 mg/m3 ",{"$f":"MAX(HCl!O7:O9)","v":7.8},{"$f":"AVERAGE(HCl!N7:N9)","v":5.8999999999999995},{"$f":"MAX(HCl!O10:O12)","v":10.3},{"$f":"AVERAGE(HCl!N10:N12)","v":5.7666666666666657},{"$f":"MAX(HCl!O13:O15)","v":8.3000000000000007},{"$f":"AVERAGE(HCl!N13:N15)","v":5.666666666666667},{"$f":"MAX(HCl!O16:O18)","v":7.8},{"$f":"AVERAGE(HCl!N16:N18)","v":5.3666666666666671},{"$f":"HCl!O19","v":10.3},{"$f":"HCl!N19","v":5.6749999999999998},"Sulphur dioxide","Daily mean","40 mg/m3 "]
[null,"½ hourly mean","60 mg/m3 ",{"$f":"MAX(HCl!M7:M9)","v":15.1},{"$f":"AVERAGE(HCl!L7:L9)","v":5.9333333333333327},{"$f":"MAX(HCl!M10:M12)","v":64},{"$f":"AVERAGE(HCl!L10:L12)","v":5.8666666666666671},{"$f":"MAX(HCl!M13:M15)","v":53.6},{"$f":"AVERAGE(HCl!L13:L15)","v":5.7333333333333334},{"$f":"MAX(HCl!M16:M18)","v":38.5},{"$f":"AVERAGE(HCl!L16:L18)","v":5.3999999999999995},{"$f":"HCl!M19","v":64},{"$f":"HCl!L19","v":5.7333333333333334},"Ammonia","Daily mean","15 mg/m3 "]
["Sulphur dioxide","Daily mean","50 mg/m3 ",{"$f":"MAX('SO2'!O7:O9)","v":33.5},{"$f":"AVERAGE('SO2'!N7:N9)","v":25.399999999999995},{"$f":"MAX('SO2'!O10:O12)","v":38.6},{"$f":"AVERAGE('SO2'!N10:N12)","v":24.066666666666666},{"$f":"MAX('SO2'!O13:O15)","v":32.700000000000003},{"$f":"AVERAGE('SO2'!N13:N15)","v":22.666666666666668},{"$f":"MAX('SO2'!O16:O18)","v":46.3},{"$f":"AVERAGE('SO2'!N16:N18)","v":25.2},{"$f":"'SO2'!O19","v":46.3},{"$f":"'SO2'!N19","v":24.333333333333332}]
[null,"½ hourly mean","200 mg/m3 ",{"$f":"MAX('SO2'!M7:M9)","v":132.5},{"$f":"AVERAGE('SO2'!L7:L9)","v":25.433333333333334},{"$f":"MAX('SO2'!M10:M12)","v":203.4},{"$f":"AVERAGE('SO2'!L10:L12)","v":24.266666666666666},{"$f":"MAX('SO2'!M13:M15)","v":246.2},{"$f":"AVERAGE('SO2'!L13:L15)","v":22.966666666666669},{"$f":"MAX('SO2'!M16:M18)","v":215.2},{"$f":"AVERAGE('SO2'!L16:L18)","v":25.266666666666666},{"$f":"'SO2'!M19","v":246.2},{"$f":"'SO2'!L19","v":24.483333333333331}]
["Carbon monoxide ","Daily mean","50 mg/m3 ",{"$f":"MAX('CO 95% 10 min'!Q10:Q12)","v":4.8},{"$f":"AVERAGE('CO 95% 10 min'!P10:P12)","v":2.5},{"$f":"MAX('CO 95% 10 min'!Q13:Q15)","v":5.3},{"$f":"AVERAGE('CO 95% 10 min'!P13:P15)","v":2.5},{"$f":"MAX('CO 95% 10 min'!Q16:Q18)","v":5.6},{"$f":"AVERAGE('CO 95% 10 min'!P16:P18)","v":2.7333333333333329},{"$f":"MAX('CO 95% 10 min'!Q19:Q21)","v":4.5},{"$f":"AVERAGE('CO 95% 10 min'!P19:P21)","v":2.4333333333333331},{"$f":"'CO 95% 10 min'!Q22","v":5.6},{"$f":"'CO 95% 10 min'!P22","v":2.5416666666666665}]
[null,"½ hourly mean *","100 mg/m3 *",{"$f":"MAX('CO 0.5 hourly'!L10:L12)","v":2.7},{"$f":"AVERAGE('CO 0.5 hourly'!M10:M12)","v":74.966666666666654},{"$f":"MAX('CO 0.5 hourly'!L13:L14)","v":2.6},{"$f":"AVERAGE('CO 0.5 hourly'!M13:M15)","v":74.400000000000006},{"$f":"MAX('CO 0.5 hourly'!L16:L18)","v":3.7},{"$f":"AVERAGE('CO 0.5 hourly'!M16:M18)","v":104.7},{"$f":"MAX('CO 0.5 hourly'!L19:L21)","v":2.6},{"$f":"AVERAGE('CO 0.5 hourly'!M19:M21)","v":53.766666666666659},{"$f":"'CO 0.5 hourly'!L22","v":2.6166666666666667},{"$f":"'CO 0.5 hourly'!M22","v":129.6}]
[null,"95%ile 10-min avg *","150 mg/m3 *",{"$f":"MAX('CO 95% 10 min'!M10:M12)","v":19.3},{"$f":"AVERAGE('CO 95% 10 min'!N10:N12)","v":2.5},{"$f":"MAX('CO 95% 10 min'!M13:M15)","v":7.3},{"$f":"AVERAGE('CO 95% 10 min'!N13:N15)","v":2.5666666666666664},{"$f":"MAX('CO 95% 10 min'!M16:M18)","v":30.4},{"$f":"AVERAGE('CO 95% 10 min'!N16:N18)","v":2.9333333333333336},{"$f":"MAX('CO 95% 10 min'!M19:M21)","v":11.9},{"$f":"AVERAGE('CO 95% 10 min'!N19:N21)","v":2.4666666666666668},{"$f":"'CO 95% 10 min'!M22","v":12.516666666666667},{"$f":"'CO 95% 10 min'!N22","v":2.6166666666666667}]
[" Ammonia","Daily mean","No limit set until 03/12/23",{"$f":"MAX('NH3'!O7:O9)","v":16},{"$f":"AVERAGE('NH3'!N7:N9)","v":4.8666666666666663},{"$f":"MAX('NH3'!O10:O12)","v":22.7},{"$f":"AVERAGE('NH3'!N10:N12)","v":7.7666666666666657},{"$f":"MAX('NH3'!O13:O15)","v":28.6},{"$f":"AVERAGE('NH3'!N13:N15)","v":10.566666666666666},{"$f":"MAX('NH3'!O16:O18)","v":3.7},{"$f":"AVERAGE('NH3'!N16:N18)","v":1.4000000000000001},{"$f":"'NH3'!O19","v":28.6},{"$f":"'NH3'!N19","v":6.1499999999999986}]
["** = delete as appropriate, depending on whether your plant has half-horly or 10-min CO ELVs\n"]
["Comments :"]

{"sheet":"HCl","index":15,"n_rows":79,"n_cols":17,"rows_kept":79,"cut":false,"hidden":false,"merged":[[12,16,15,18],[51,9,63,9],[66,9,78,9],[4,9,4,14],[4,1,4,3],[4,4,4,6],[48,0,51,6],[47,0,47,6],[6,9,18,9],[21,9,33,9],[36,9,48,9],[3,16,7,18],[9,16,11,18],[18,4,18,6]]}
[{"$f":"+'Cover Page'!$B$29","v":"Annual Performance Report 2023"},null,null,null,{"$f":"+'Cover Page'!$B$33","v":"Peterborough Energy Recovery Facility"}]
[]
["Monitoring of Hydrogen Chloride emissions",null,null,"Whole Installation",null,null,"See  Notes in Cell Q3",null,null,{"$f":"+A3","v":"Monitoring of Hydrogen Chloride emissions"},null,null,null,"Per Combustion Line",null,null,"Notes:"]
[null,null,null,null,null,null,null,null,null,null,null,null,null,null,null,null,"User to add logic to complete Whole installation, Table A5:G18. From the data in Per Combustion Line, Table J6:O79, subject to No. of lines installed"]
["mg/Nm3","1/2 Hourly Reference Periods",null,null,"Daily Reference Periods"]
[{"$f":"+'Cover Page'!C39","v":2023},"1/2 hourly HCl ELV","Monthly 1/2 hourly mean","Highest 1/2 hourly maximum","Daily HCl ELV*","Monthly daily mean","Highest daily maximum",null,null,{"$f":"+A6","v":2023},"mg/Nm3","Monthly 1/2 hourly mean","Monthly 1/2 hourly maximum","Monthly daily mean","Monthly daily maximum"]
["Jan",60,{"$f":"L7","v":5.0999999999999996},{"$f":"M7","v":15.1},10,{"$f":"N7","v":5.0999999999999996},{"$f":"O7","v":7},null,null,"A1","Jan",5.0999999999999996,15.1,5.0999999999999996,7]
["Feb",60,{"$f":"L8","v":6.1},{"$f":"M8","v":13.8},10,{"$f":"N8","v":6.1},{"$f":"O8","v":7.7},null,null,null,"Feb",6.1,13.8,6.1,7.7]
["Mar",60,6.6,13.8,10,6.5,7.8,null,null,null,"Mar",6.6,13.8,6.5,7.8,null,"Whole Installation table A5:G18:"]
["Apr",60,6.2,44,10,6.2,10.3,null,null,null,"Apr",6.2,44,6.2,10.3,null,"Mean: for 1/2 hourly and daily periods calculate mean of values across all operational combustion lines for the month"]
["May",60,7,14.7,10,7,8.1,null,null,null,"May",7,14.7,7,8.1]
["Jun",60,4.4000000000000004,64,10,4.0999999999999996,6.5,null,null,null,"Jun",4.4000000000000004,64,4.0999999999999996,6.5]
["Jul",60,5.7,42.8,10,5.8,7.6,null,null,null,"Jul",5.7,42.8,5.8,7.6,null,"Maximum: for 1/2 hourly and daily periods use the highest value across all operational combustion lines for the month"]
["Aug",60,6.7,19.100000000000001,10,6.7,8.3000000000000007,null,null,null,"Aug",6.7,19.100000000000001,6.7,8.3000000000000007]
["Sep",60,4.8,53.6,10,4.5,7.6,null,null,null,"Sep",4.8,53.6,4.5,7.6]
["Oct",60,5.6,26.6,10,5.5,7.8,null,null,null,"Oct",5.6,26.6,5.5,7.8]
["Nov",60,4.8,38.5,10,4.8,7.3,null,null,null,"Nov",4.8,38.5,4.8,7.3]
["Dec",60,5.8,24.5,8,5.8,7,null,null,null,"Dec",5.8,24.5,5.8,7]
[null,null,null,null,"* ELV reduced to 8 mg/Nm3 on 3 December 2023",null,null,null,null,null,"Annual",{"$f":"AVERAGE(L7:L18)","v":5.7333333333333334},{"$f":"MAX(M7:M18)","v":64},{"$f":"AVERAGE(N7:N18)","v":5.6749999999999998},{"$f":"MAX(O7:O18)","v":10.3}]
[]
[null,null,null,null,null,null,null,null,null,{"$f":"+A6","v":2023},"mg/Nm3","Monthly 1/2 hourly mean","Monthly 1/2 hourly maximum","Monthly daily mean","Monthly daily maximum"]
[null,null,null,null,null,null,null,null,null,"A2","Jan"]
[null,null,null,null,null,null,null,null,null,null,"Feb"]
[null,null,null,null,null,null,null,null,null,null,"Mar"]
[null,null,null,null,null,null,null,null,null,null,"Apr"]
[null,null,null,null,null,null,null,null,null,null,"May"]
[null,null,null,null,null,null,null,null,null,null,"Jun"]
[null,null,null,null,null,null,null,null,null,null,"Jul"]
[null,null,null,null,null,null,null,null,null,null,"Aug"]
[null,null,null,null,null,null,null,null,null,null,"Sep"]
[null,null,null,null,null,null,null,null,null,null,"Oct"]
[null,null,null,null,null,null,null,null,null,null,"Nov"]
[null,null,null,null,null,null,null,null,null,null,"Dec"]
[null,null,null,null,null,null,null,null,null,null,"Annual",{"$f":"AVERAGE(L22:L33)","v":{"$error":"#DIV/0!"}},{"$f":"MAX(M22:M33)","v":0},{"$f":"AVERAGE(N22:N33)","v":{"$error":"#DIV/0!"}},{"$f":"MAX(O22:O33)","v":0}]
[]
[null,null,null,null,null,null,null,null,null,{"$f":"+A6","v":2023},"mg/Nm3","Monthly 1/2 hourly mean","Monthly 1/2 hourly maximum","Monthly daily mean","Monthly daily maximum"]
[null,null,null,null,null,null,null,null,null,"A3","Jan"]
[null,null,null,null,null,null,null,null,null,null,"Feb"]
[null,null,null,null,null,null,null,null,null,null,"Mar"]
[null,null,null,null,null,null,null,null,null,null,"Apr"]
[null,null,null,null,null,null,null,null,null,null,"May"]
[null,null,null,null,null,null,null,null,null,null,"Jun"]
[null,null,null,null,null,null,null,null,null,null,"Jul"]
[null,null,null,null,null,null,null,null,null,null,"Aug"]
[null,null,null,null,null,null,null,null,null,null,"Sep"]
[null,null,null,null,null,null,null,null,null,null,"Oct"]
[null,null,null,null,null,null,null,null,null,null,"Nov"]
["Comments :",null,null,null,null,null,null,null,null,null,"Dec"]
[null,null,null,null,null,null,null,null,null,null,"Annual",{"$f":"AVERAGE(L37:L48)","v":{"$error":"#DIV/0!"}},{"$f":"MAX(M37:M48)","v":0},{"$f":"AVERAGE(N37:N48)","v":{"$error":"#DIV/0!"}},{"$f":"MAX(O37:O48)","v":0}]
[]
[null,null,null,null,null,null,null,null,null,{"$f":"+A6","v":2023},"mg/Nm3","Monthly 1/2 hourly mean","Monthly 1/2 hourly maximum","Monthly daily mean","Monthly daily maximum"]
[null,null,null,null,null,null,null,null,null,"A4","Jan"]
[null,null,null,null,null,null,null,null,null,null,"Feb"]
[null,null,null,null,null,null,null,null,null,null,"Mar"]
[null,null,null,null,null,null,null,null,null,null,"Apr"]
[null,null,null,null,null,null,null,null,null,null,"May"]
[null,null,null,null,null,null,null,null,null,null,"Jun"]
[null,null,null,null,null,null,null,null,null,null,"Jul"]
[null,null,null,null,null,null,null,null,null,null,"Aug"]
[null,null,null,null,null,null,null,null,null,null,"Sep"]
[null,null,null,null,null,null,null,null,null,null,"Oct"]
[null,null,null,null,null,null,null,null,null,null,"Nov"]
[null,null,null,null,null,null,null,null,null,null,"Dec"]
[null,null,null,null,null,null,null,null,null,null,"Annual",{"$f":"AVERAGE(L52:L63)","v":{"$error":"#DIV/0!"}},{"$f":"MAX(M52:M63)","v":0},{"$f":"AVERAGE(N52:N63)","v":{"$error":"#DIV/0!"}},{"$f":"MAX(O52:O63)","v":0}]
[]
[null,null,null,null,null,null,null,null,null,{"$f":"+A6","v":2023},"mg/Nm3","Monthly 1/2 hourly mean","Monthly 1/2 hourly maximum","Monthly daily mean","Monthly daily maximum"]
[null,null,null,null,null,null,null,null,null,"A5","Jan"]
[null,null,null,null,null,null,null,null,null,null,"Feb"]
[null,null,null,null,null,null,null,null,null,null,"Mar"]
[null,null,null,null,null,null,null,null,null,null,"Apr"]
[null,null,null,null,null,null,null,null,null,null,"May"]
[null,null,null,null,null,null,null,null,null,null,"Jun"]
[null,null,null,null,null,null,null,null,null,null,"Jul"]
[null,null,null,null,null,null,null,null,null,null,"Aug"]
[null,null,null,null,null,null,null,null,null,null,"Sep"]
[null,null,null,null,null,null,null,null,null,null,"Oct"]
[null,null,null,null,null,null,null,null,null,null,"Nov"]
[null,null,null,null,null,null,null,null,null,null,"Dec"]
[null,null,null,null,null,null,null,null,null,null,"Annual",{"$f":"AVERAGE(L67:L78)","v":{"$error":"#DIV/0!"}},{"$f":"MAX(M67:M78)","v":0},{"$f":"AVERAGE(N67:N78)","v":{"$error":"#DIV/0!"}},{"$f":"MAX(O67:O78)","v":0}]

{"sheet":"SO2","index":16,"n_rows":79,"n_cols":17,"rows_kept":79,"cut":false,"hidden":false,"merged":[[3,16,7,18],[9,16,11,18],[12,16,15,18],[66,9,78,9],[4,1,4,3],[4,4,4,6],[4,9,4,14],[6,9,18,9],[21,9,33,9],[36,9,48,9],[47,0,47,6],[48,0,51,6],[51,9,63,9],[18,4,18,6]]}
[{"$f":"+'Cover Page'!$B$29","v":"Annual Performance Report 2023"},null,null,null,{"$f":"+'Cover Page'!$B$33","v":"Peterborough Energy Recovery Facility"}]
[]
["Monitoring of Sulphur dioxide emissions",null,null,"Whole Installation",null,null,"See  Notes in Cell Q3",null,null,{"$f":"+A3","v":"Monitoring of Sulphur dioxide emissions"},null,null,null,"Per Combustion Line",null,null,"Notes:"]
[null,null,null,null,null,null,null,null,null,null,null,null,null,null,null,null,"User to add logic to complete Whole installation, Table A5:G18. From the data in Per Combustion Line, Table J6:O79, subject to No. of lines installed"]
["mg/Nm3","1/2 Hourly Reference Periods",null,null,"Daily Reference Periods"]
[{"$f":"+'Cover Page'!C39","v":2023},"1/2 hourly SO2 ELV","Monthly 1/2 hourly mean","Highest 1/2 hourly maximum","Daily SO2 ELV*","Monthly daily mean","Highest daily maximum",null,null,{"$f":"+A6","v":2023},"mg/Nm3","Monthly 1/2 hourly mean","Monthly 1/2 hourly maximum","Monthly daily mean","Monthly daily maximum"]
["Jan",200,{"$f":"L7","v":23.5},{"$f":"M7","v":52.1},50,{"$f":"N7","v":23.5},{"$f":"O7","v":32.200000000000003},null,null,"A1","Jan",23.5,52.1,23.5,32.200000000000003]
["Feb",200,{"$f":"L8","v":28.3},{"$f":"M8","v":132.5},50,{"$f":"N8","v":28.3},{"$f":"O8","v":33.5},null,null,null,"Feb",28.3,132.5,28.3,33.5]
["Mar",200,24.5,66.099999999999994,50,24.4,32.200000000000003,null,null,null,"Mar",24.5,66.099999999999994,24.4,32.200000000000003,null,"Whole Installation table A5:G18:"]
["Apr",200,23.9,87,50,23.9,32.1,null,null,null,"Apr",23.9,87,23.9,32.1,null,"Mean: for 1/2 hourly and daily periods calculate mean of values across all operational combustion lines for the month"]
["May",200,17.899999999999999,72.099999999999994,50,18,26.3,null,null,null,"May",17.899999999999999,72.099999999999994,18,26.3]
["Jun",200,31,203.4,50,30.3,38.6,null,null,null,"Jun",31,203.4,30.3,38.6]
["Jul",200,23.8,246.2,50,23.5,32.700000000000003,null,null,null,"Jul",23.8,246.2,23.5,32.700000000000003,null,"Maximum: for 1/2 hourly and daily periods use the highest value across all operational combustion lines for the month"]
["Aug",200,18.7,74.099999999999994,50,18.600000000000001,29,null,null,null,"Aug",18.7,74.099999999999994,18.600000000000001,29]
["Sep",200,26.4,72.599999999999994,50,25.9,30.6,null,null,null,"Sep",26.4,72.599999999999994,25.9,30.6]
["Oct",200,24,95.7,50,24,33,null,null,null,"Oct",24,95.7,24,33]
["Nov",200,26.4,215.2,50,26.4,46.3,null,null,null,"Nov",26.4,215.2,26.4,46.3]
["Dec",200,25.4,104.5,40,25.2,34.4,null,null,null,"Dec",25.4,104.5,25.2,34.4]
[null,null,null,null,"* ELV reduced to 40 mg/Nm3 on 3 December 2023",null,null,null,null,null,"Annual",{"$f":"AVERAGE(L7:L18)","v":24.483333333333331},{"$f":"MAX(M7:M18)","v":246.2},{"$f":"AVERAGE(N7:N18)","v":24.333333333333332},{"$f":"MAX(O7:O18)","v":46.3}]
[]
[null,null,null,null,null,null,null,null,null,{"$f":"+A6","v":2023},"mg/Nm3","Monthly 1/2 hourly mean","Monthly 1/2 hourly maximum","Monthly daily mean","Monthly daily maximum"]
[null,null,null,null,null,null,null,null,null,"A2","Jan"]
[null,null,null,null,null,null,null,null,null,null,"Feb"]
[null,null,null,null,null,null,null,null,null,null,"Mar"]
[null,null,null,null,null,null,null,null,null,null,"Apr"]
[null,null,null,null,null,null,null,null,null,null,"May"]
[null,null,null,null,null,null,null,null,null,null,"Jun"]
[null,null,null,null,null,null,null,null,null,null,"Jul"]
[null,null,null,null,null,null,null,null,null,null,"Aug"]
[null,null,null,null,null,null,null,null,null,null,"Sep"]
[null,null,null,null,null,null,null,null,null,null,"Oct"]
[null,null,null,null,null,null,null,null,null,null,"Nov"]
[null,null,null,null,null,null,null,null,null,null,"Dec"]
[null,null,null,null,null,null,null,null,null,null,"Annual",{"$f":"AVERAGE(L22:L33)","v":{"$error":"#DIV/0!"}},{"$f":"MAX(M22:M33)","v":0},{"$f":"AVERAGE(N22:N33)","v":{"$error":"#DIV/0!"}},{"$f":"MAX(O22:O33)","v":0}]
[]
[null,null,null,null,null,null,null,null,null,{"$f":"+A6","v":2023},"mg/Nm3","Monthly 1/2 hourly mean","Monthly 1/2 hourly maximum","Monthly daily mean","Monthly daily maximum"]
[null,null,null,null,null,null,null,null,null,"A3","Jan"]
[null,null,null,null,null,null,null,null,null,null,"Feb"]
[null,null,null,null,null,null,null,null,null,null,"Mar"]
[null,null,null,null,null,null,null,null,null,null,"Apr"]
[null,null,null,null,null,null,null,null,null,null,"May"]
[null,null,null,null,null,null,null,null,null,null,"Jun"]
[null,null,null,null,null,null,null,null,null,null,"Jul"]
[null,null,null,null,null,null,null,null,null,null,"Aug"]
[null,null,null,null,null,null,null,null,null,null,"Sep"]
[null,null,null,null,null,null,null,null,null,null,"Oct"]
[null,null,null,null,null,null,null,null,null,null,"Nov"]
["Comments :",null,null,null,null,null,null,null,null,null,"Dec"]
[null,null,null,null,null,null,null,null,null,null,"Annual",{"$f":"AVERAGE(L37:L48)","v":{"$error":"#DIV/0!"}},{"$f":"MAX(M37:M48)","v":0},{"$f":"AVERAGE(N37:N48)","v":{"$error":"#DIV/0!"}},{"$f":"MAX(O37:O48)","v":0}]
[]
[null,null,null,null,null,null,null,null,null,{"$f":"+A6","v":2023},"mg/Nm3","Monthly 1/2 hourly mean","Monthly 1/2 hourly maximum","Monthly daily mean","Monthly daily maximum"]
[null,null,null,null,null,null,null,null,null,"A4","Jan"]
[null,null,null,null,null,null,null,null,null,null,"Feb"]
[null,null,null,null,null,null,null,null,null,null,"Mar"]
[null,null,null,null,null,null,null,null,null,null,"Apr"]
[null,null,null,null,null,null,null,null,null,null,"May"]
[null,null,null,null,null,null,null,null,null,null,"Jun"]
[null,null,null,null,null,null,null,null,null,null,"Jul"]
[null,null,null,null,null,null,null,null,null,null,"Aug"]
[null,null,null,null,null,null,null,null,null,null,"Sep"]
[null,null,null,null,null,null,null,null,null,null,"Oct"]
[null,null,null,null,null,null,null,null,null,null,"Nov"]
[null,null,null,null,null,null,null,null,null,null,"Dec"]
[null,null,null,null,null,null,null,null,null,null,"Annual",{"$f":"AVERAGE(L52:L63)","v":{"$error":"#DIV/0!"}},{"$f":"MAX(M52:M63)","v":0},{"$f":"AVERAGE(N52:N63)","v":{"$error":"#DIV/0!"}},{"$f":"MAX(O52:O63)","v":0}]
[]
[null,null,null,null,null,null,null,null,null,{"$f":"+A6","v":2023},"mg/Nm3","Monthly 1/2 hourly mean","Monthly 1/2 hourly maximum","Monthly daily mean","Monthly daily maximum"]
[null,null,null,null,null,null,null,null,null,"A5","Jan"]
[null,null,null,null,null,null,null,null,null,null,"Feb"]
[null,null,null,null,null,null,null,null,null,null,"Mar"]
[null,null,null,null,null,null,null,null,null,null,"Apr"]
[null,null,null,null,null,null,null,null,null,null,"May"]
[null,null,null,null,null,null,null,null,null,null,"Jun"]
[null,null,null,null,null,null,null,null,null,null,"Jul"]
[null,null,null,null,null,null,null,null,null,null,"Aug"]
[null,null,null,null,null,null,null,null,null,null,"Sep"]
[null,null,null,null,null,null,null,null,null,null,"Oct"]
[null,null,null,null,null,null,null,null,null,null,"Nov"]
[null,null,null,null,null,null,null,null,null,null,"Dec"]
[null,null,null,null,null,null,null,null,null,null,"Annual",{"$f":"AVERAGE(L67:L78)","v":{"$error":"#DIV/0!"}},{"$f":"MAX(M67:M78)","v":0},{"$f":"AVERAGE(N67:N78)","v":{"$error":"#DIV/0!"}},{"$f":"MAX(O67:O78)","v":0}]

{"sheet":"NOx","index":17,"n_rows":79,"n_cols":17,"rows_kept":79,"cut":false,"hidden":false,"merged":[[3,16,7,18],[9,16,11,18],[12,16,15,18],[66,9,78,9],[4,1,4,3],[4,4,4,6],[4,9,4,14],[6,9,18,9],[21,9,33,9],[36,9,48,9],[47,0,47,6],[48,0,51,6],[51,9,63,9],[18,4,18,6]]}
[{"$f":"+'Cover Page'!$B$29","v":"Annual Performance Report 2023"},null,null,null,{"$f":"+'Cover Page'!$B$33","v":"Peterborough Energy Recovery Facility"}]
[]
["Monitoring of Oxides of Nitrogen emissions",null,null,"Whole Installation",null,null,"See  Notes in Cell Q3",null,null,{"$f":"+A3","v":"Monitoring of Oxides of Nitrogen emissions"},null,null,null,"Per Combustion Line",null,null,"Notes:"]
[null,null,null,null,null,null,null,null,null,null,null,null,null,null,null,null,"User to add logic to complete Whole installation, Table A5:G18. From the data in Per Combustion Line, Table J6:O79, subject to No. of lines installed"]
["mg/Nm3","1/2 Hourly Reference Periods",null,null,"Daily Reference Periods"]
[{"$f":"+'Cover Page'!C39","v":2023},"1/2 hourly NOx ELV","Monthly 1/2 hourly mean","Highest 1/2 hourly maximum","Daily NOx ELV*","Monthly daily mean","Highest daily maximum",null,null,{"$f":"+A6","v":2023},"mg/Nm3","Monthly 1/2 hourly mean","Monthly 1/2 hourly maximum","Monthly daily mean","Monthly daily maximum"]
["Jan",400,{"$f":"L7","v":116.7},{"$f":"M7","v":166.3},200,{"$f":"N7","v":116.7},{"$f":"O7","v":124.8},null,null,"A1","Jan",116.7,166.3,116.7,124.8]
["Feb",400,{"$f":"L8","v":116.4},{"$f":"M8","v":173.2},200,{"$f":"N8","v":116.3},{"$f":"O8","v":122.8},null,null,null,"Feb",116.4,173.2,116.3,122.8]
["Mar",400,116.3,149,200,116.3,119,null,null,null,"Mar",116.3,149,116.3,119,null,"Whole Installation table A5:G18:"]
["Apr",400,115.6,135.1,200,115.6,116.3,null,null,null,"Apr",115.6,135.1,115.6,116.3,null,"Mean: for 1/2 hourly and daily periods calculate mean of values across all operational combustion lines for the month"]
["May",400,117,170.3,200,117.1,127.4,null,null,null,"May",117,170.3,117.1,127.4]
["Jun",400,109.3,268.39999999999998,200,109.7,115.9,null,null,null,"Jun",109.3,268.39999999999998,109.7,115.9]
["Jul",400,107.5,218.7,200,107.6,120,null,null,null,"Jul",107.5,218.7,107.6,120,null,"Maximum: for 1/2 hourly and daily periods use the highest value across all operational combustion lines for the month"]
["Aug",400,103,135.69999999999999,200,102.9,112.3,null,null,null,"Aug",103,135.69999999999999,102.9,112.3]
["Sep",400,106,215.3,200,105.7,115.9,null,null,null,"Sep",106,215.3,105.7,115.9]
["Oct",400,98.5,121.1,200,98.5,106,null,null,null,"Oct",98.5,121.1,98.5,106]
["Nov",400,106,199,200,105.9,122.5,null,null,null,"Nov",106,199,105.9,122.5]
["Dec",400,112.1,147.4,200,112.1,115.9,null,null,null,"Dec",112.1,147.4,112.1,115.9]
[null,null,null,null,"* ELV reduced to 180 mg/Nm3 on 3 December 2023",null,null,null,null,null,"Annual",{"$f":"AVERAGE(L7:L18)","v":110.36666666666666},{"$f":"MAX(M7:M18)","v":268.39999999999998},{"$f":"AVERAGE(N7:N18)","v":110.36666666666667},{"$f":"MAX(O7:O18)","v":127.4}]
[]
[null,null,null,null,null,null,null,null,null,{"$f":"+A6","v":2023},"mg/Nm3","Monthly 1/2 hourly mean","Monthly 1/2 hourly maximum","Monthly daily mean","Monthly daily maximum"]
[null,null,null,null,null,null,null,null,null,"A2","Jan"]
[null,null,null,null,null,null,null,null,null,null,"Feb"]
[null,null,null,null,null,null,null,null,null,null,"Mar"]
[null,null,null,null,null,null,null,null,null,null,"Apr"]
[null,null,null,null,null,null,null,null,null,null,"May"]
[null,null,null,null,null,null,null,null,null,null,"Jun"]
[null,null,null,null,null,null,null,null,null,null,"Jul"]
[null,null,null,null,null,null,null,null,null,null,"Aug"]
[null,null,null,null,null,null,null,null,null,null,"Sep"]
[null,null,null,null,null,null,null,null,null,null,"Oct"]
[null,null,null,null,null,null,null,null,null,null,"Nov"]
[null,null,null,null,null,null,null,null,null,null,"Dec"]
[null,null,null,null,null,null,null,null,null,null,"Annual",{"$f":"AVERAGE(L22:L33)","v":{"$error":"#DIV/0!"}},{"$f":"MAX(M22:M33)","v":0},{"$f":"AVERAGE(N22:N33)","v":{"$error":"#DIV/0!"}},{"$f":"MAX(O22:O33)","v":0}]
[]
[null,null,null,null,null,null,null,null,null,{"$f":"+A6","v":2023},"mg/Nm3","Monthly 1/2 hourly mean","Monthly 1/2 hourly maximum","Monthly daily mean","Monthly daily maximum"]
[null,null,null,null,null,null,null,null,null,"A3","Jan"]
[null,null,null,null,null,null,null,null,null,null,"Feb"]
[null,null,null,null,null,null,null,null,null,null,"Mar"]
[null,null,null,null,null,null,null,null,null,null,"Apr"]
[null,null,null,null,null,null,null,null,null,null,"May"]
[null,null,null,null,null,null,null,null,null,null,"Jun"]
[null,null,null,null,null,null,null,null,null,null,"Jul"]
[null,null,null,null,null,null,null,null,null,null,"Aug"]
[null,null,null,null,null,null,null,null,null,null,"Sep"]
[null,null,null,null,null,null,null,null,null,null,"Oct"]
[null,null,null,null,null,null,null,null,null,null,"Nov"]
["Comments :",null,null,null,null,null,null,null,null,null,"Dec"]
[null,null,null,null,null,null,null,null,null,null,"Annual",{"$f":"AVERAGE(L37:L48)","v":{"$error":"#DIV/0!"}},{"$f":"MAX(M37:M48)","v":0},{"$f":"AVERAGE(N37:N48)","v":{"$error":"#DIV/0!"}},{"$f":"MAX(O37:O48)","v":0}]
[]
[null,null,null,null,null,null,null,null,null,{"$f":"+A6","v":2023},"mg/Nm3","Monthly 1/2 hourly mean","Monthly 1/2 hourly maximum","Monthly daily mean","Monthly daily maximum"]
[null,null,null,null,null,null,null,null,null,"A4","Jan"]
[null,null,null,null,null,null,null,null,null,null,"Feb"]
[null,null,null,null,null,null,null,null,null,null,"Mar"]
[null,null,null,null,null,null,null,null,null,null,"Apr"]
[null,null,null,null,null,null,null,null,null,null,"May"]
[null,null,null,null,null,null,null,null,null,null,"Jun"]
[null,null,null,null,null,null,null,null,null,null,"Jul"]
[null,null,null,null,null,null,null,null,null,null,"Aug"]
[null,null,null,null,null,null,null,null,null,null,"Sep"]
[null,null,null,null,null,null,null,null,null,null,"Oct"]
[null,null,null,null,null,null,null,null,null,null,"Nov"]
[null,null,null,null,null,null,null,null,null,null,"Dec"]
[null,null,null,null,null,null,null,null,null,null,"Annual",{"$f":"AVERAGE(L52:L63)","v":{"$error":"#DIV/0!"}},{"$f":"MAX(M52:M63)","v":0},{"$f":"AVERAGE(N52:N63)","v":{"$error":"#DIV/0!"}},{"$f":"MAX(O52:O63)","v":0}]
[]
[null,null,null,null,null,null,null,null,null,{"$f":"+A6","v":2023},"mg/Nm3","Monthly 1/2 hourly mean","Monthly 1/2 hourly maximum","Monthly daily mean","Monthly daily maximum"]
[null,null,null,null,null,null,null,null,null,"A5","Jan"]
[null,null,null,null,null,null,null,null,null,null,"Feb"]
[null,null,null,null,null,null,null,null,null,null,"Mar"]
[null,null,null,null,null,null,null,null,null,null,"Apr"]
[null,null,null,null,null,null,null,null,null,null,"May"]
[null,null,null,null,null,null,null,null,null,null,"Jun"]
[null,null,null,null,null,null,null,null,null,null,"Jul"]
[null,null,null,null,null,null,null,null,null,null,"Aug"]
[null,null,null,null,null,null,null,null,null,null,"Sep"]
[null,null,null,null,null,null,null,null,null,null,"Oct"]
[null,null,null,null,null,null,null,null,null,null,"Nov"]
[null,null,null,null,null,null,null,null,null,null,"Dec"]
[null,null,null,null,null,null,null,null,null,null,"Annual",{"$f":"AVERAGE(L67:L78)","v":{"$error":"#DIV/0!"}},{"$f":"MAX(M67:M78)","v":0},{"$f":"AVERAGE(N67:N78)","v":{"$error":"#DIV/0!"}},{"$f":"MAX(O67:O78)","v":0}]

{"sheet":"TOC","index":18,"n_rows":79,"n_cols":17,"rows_kept":79,"cut":false,"hidden":false,"merged":[[3,16,7,18],[9,16,11,18],[12,16,15,18],[66,9,78,9],[4,1,4,3],[4,4,4,6],[4,9,4,14],[6,9,18,9],[21,9,33,9],[36,9,48,9],[47,0,47,6],[48,0,51,6],[51,9,63,9]]}
[{"$f":"+'Cover Page'!$B$29","v":"Annual Performance Report 2023"},null,null,null,{"$f":"+'Cover Page'!$B$33","v":"Peterborough Energy Recovery Facility"}]
[]
["Monitoring of Total organic carbon emissions",null,null,"Whole Installation",null,null,"See  Notes in Cell Q3",null,null,{"$f":"+A3","v":"Monitoring of Total organic carbon emissions"},null,null,null,"Per Combustion Line",null,null,"Notes:"]
[null,null,null,null,null,null,null,null,null,null,null,null,null,null,null,null,"User to add logic to complete Whole installation, Table A5:G18. From the data in Per Combustion Line, Table J6:O79, subject to No. of lines installed"]
["mg/Nm3","1/2 Hourly Reference Periods",null,null,"Daily Reference Periods"]
[{"$f":"+'Cover Page'!C39","v":2023},"1/2 hourly TOC ELV","Monthly 1/2 hourly mean","Highest 1/2 hourly maximum","Daily TOC ELV","Monthly daily mean","Highest daily maximum",null,null,{"$f":"+A6","v":2023},"mg/Nm3","Monthly 1/2 hourly mean","Monthly 1/2 hourly maximum","Monthly daily mean","Monthly daily maximum"]
["Jan",20,{"$f":"L7","v":0.5},{"$f":"M7","v":11.1},10,{"$f":"N7","v":0.4},{"$f":"O7","v":0.7},null,null,"A1","Jan",0.5,11.1,0.4,0.7]
["Feb",20,{"$f":"L8","v":0.4},{"$f":"M8","v":4.5},10,{"$f":"N8","v":0.4},{"$f":"O8","v":0.7},null,null,null,"Feb",0.4,4.5,0.4,0.7]
["Mar",20,0.4,5.4,10,0.4,0.8,null,null,null,"Mar",0.4,5.4,0.4,0.8,null,"Whole Installation table A5:G18:"]
["Apr",20,0.4,2.7,10,0.4,0.6,null,null,null,"Apr",0.4,2.7,0.4,0.6,null,"Mean: for 1/2 hourly and daily periods calculate mean of values across all operational combustion lines for the month"]
["May",20,0.4,3.3,10,0.4,0.5,null,null,null,"May",0.4,3.3,0.4,0.5]
["Jun",20,0.4,1,10,0.3,0.5,null,null,null,"Jun",0.4,1,0.3,0.5]
["Jul",20,0.4,7.7,10,0.3,0.5,null,null,null,"Jul",0.4,7.7,0.3,0.5,null,"Maximum: for 1/2 hourly and daily periods use the highest value across all operational combustion lines for the month"]
["Aug",20,0.3,11.4,10,0.3,0.6,null,null,null,"Aug",0.3,11.4,0.3,0.6]
["Sep",20,0.7,3.8,10,0.6,1.1000000000000001,null,null,null,"Sep",0.7,3.8,0.6,1.1000000000000001]
["Oct",20,0.5,3.1,10,0.4,0.7,null,null,null,"Oct",0.5,3.1,0.4,0.7]
["Nov",20,0.5,3.3,10,0.5,0.7,null,null,null,"Nov",0.5,3.3,0.5,0.7]
["Dec",20,0.5,2.9,10,0.5,0.7,null,null,null,"Dec",0.5,2.9,0.5,0.7]
[null,null,null,null,null,null,null,null,null,null,"Annual",{"$f":"AVERAGE(L7:L18)","v":0.44999999999999996},{"$f":"MAX(M7:M18)","v":11.4},{"$f":"AVERAGE(N7:N18)","v":0.40833333333333327},{"$f":"MAX(O7:O18)","v":1.1000000000000001}]
[]
[null,null,null,null,null,null,null,null,null,{"$f":"+A6","v":2023},"mg/Nm3","Monthly 1/2 hourly mean","Monthly 1/2 hourly maximum","Monthly daily mean","Monthly daily maximum"]
[null,null,null,null,null,null,null,null,null,"A2","Jan"]
[null,null,null,null,null,null,null,null,null,null,"Feb"]
[null,null,null,null,null,null,null,null,null,null,"Mar"]
[null,null,null,null,null,null,null,null,null,null,"Apr"]
[null,null,null,null,null,null,null,null,null,null,"May"]
[null,null,null,null,null,null,null,null,null,null,"Jun"]
[null,null,null,null,null,null,null,null,null,null,"Jul"]
[null,null,null,null,null,null,null,null,null,null,"Aug"]
[null,null,null,null,null,null,null,null,null,null,"Sep"]
[null,null,null,null,null,null,null,null,null,null,"Oct"]
[null,null,null,null,null,null,null,null,null,null,"Nov"]
[null,null,null,null,null,null,null,null,null,null,"Dec"]
[null,null,null,null,null,null,null,null,null,null,"Annual",{"$f":"AVERAGE(L22:L33)","v":{"$error":"#DIV/0!"}},{"$f":"MAX(M22:M33)","v":0},{"$f":"AVERAGE(N22:N33)","v":{"$error":"#DIV/0!"}},{"$f":"MAX(O22:O33)","v":0}]
[]
[null,null,null,null,null,null,null,null,null,{"$f":"+A6","v":2023},"mg/Nm3","Monthly 1/2 hourly mean","Monthly 1/2 hourly maximum","Monthly daily mean","Monthly daily maximum"]
[null,null,null,null,null,null,null,null,null,"A3","Jan"]
[null,null,null,null,null,null,null,null,null,null,"Feb"]
[null,null,null,null,null,null,null,null,null,null,"Mar"]
[null,null,null,null,null,null,null,null,null,null,"Apr"]
[null,null,null,null,null,null,null,null,null,null,"May"]
[null,null,null,null,null,null,null,null,null,null,"Jun"]
[null,null,null,null,null,null,null,null,null,null,"Jul"]
[null,null,null,null,null,null,null,null,null,null,"Aug"]
[null,null,null,null,null,null,null,null,null,null,"Sep"]
[null,null,null,null,null,null,null,null,null,null,"Oct"]
[null,null,null,null,null,null,null,null,null,null,"Nov"]
["Comments :",null,null,null,null,null,null,null,null,null,"Dec"]
[null,null,null,null,null,null,null,null,null,null,"Annual",{"$f":"AVERAGE(L37:L48)","v":{"$error":"#DIV/0!"}},{"$f":"MAX(M37:M48)","v":0},{"$f":"AVERAGE(N37:N48)","v":{"$error":"#DIV/0!"}},{"$f":"MAX(O37:O48)","v":0}]
[]
[null,null,null,null,null,null,null,null,null,{"$f":"+A6","v":2023},"mg/Nm3","Monthly 1/2 hourly mean","Monthly 1/2 hourly maximum","Monthly daily mean","Monthly daily maximum"]
[null,null,null,null,null,null,null,null,null,"A4","Jan"]
[null,null,null,null,null,null,null,null,null,null,"Feb"]
[null,null,null,null,null,null,null,null,null,null,"Mar"]
[null,null,null,null,null,null,null,null,null,null,"Apr"]
[null,null,null,null,null,null,null,null,null,null,"May"]
[null,null,null,null,null,null,null,null,null,null,"Jun"]
[null,null,null,null,null,null,null,null,null,null,"Jul"]
[null,null,null,null,null,null,null,null,null,null,"Aug"]
[null,null,null,null,null,null,null,null,null,null,"Sep"]
[null,null,null,null,null,null,null,null,null,null,"Oct"]
[null,null,null,null,null,null,null,null,null,null,"Nov"]
[null,null,null,null,null,null,null,null,null,null,"Dec"]
[null,null,null,null,null,null,null,null,null,null,"Annual",{"$f":"AVERAGE(L52:L63)","v":{"$error":"#DIV/0!"}},{"$f":"MAX(M52:M63)","v":0},{"$f":"AVERAGE(N52:N63)","v":{"$error":"#DIV/0!"}},{"$f":"MAX(O52:O63)","v":0}]
[]
[null,null,null,null,null,null,null,null,null,{"$f":"+A6","v":2023},"mg/Nm3","Monthly 1/2 hourly mean","Monthly 1/2 hourly maximum","Monthly daily mean","Monthly daily maximum"]
[null,null,null,null,null,null,null,null,null,"A5","Jan"]
[null,null,null,null,null,null,null,null,null,null,"Feb"]
[null,null,null,null,null,null,null,null,null,null,"Mar"]
[null,null,null,null,null,null,null,null,null,null,"Apr"]
[null,null,null,null,null,null,null,null,null,null,"May"]
[null,null,null,null,null,null,null,null,null,null,"Jun"]
[null,null,null,null,null,null,null,null,null,null,"Jul"]
[null,null,null,null,null,null,null,null,null,null,"Aug"]
[null,null,null,null,null,null,null,null,null,null,"Sep"]
[null,null,null,null,null,null,null,null,null,null,"Oct"]
[null,null,null,null,null,null,null,null,null,null,"Nov"]
[null,null,null,null,null,null,null,null,null,null,"Dec"]
[null,null,null,null,null,null,null,null,null,null,"Annual",{"$f":"AVERAGE(L67:L78)","v":{"$error":"#DIV/0!"}},{"$f":"MAX(M67:M78)","v":0},{"$f":"AVERAGE(N67:N78)","v":{"$error":"#DIV/0!"}},{"$f":"MAX(O67:O78)","v":0}]

{"sheet":"Particulates","index":19,"n_rows":79,"n_cols":17,"rows_kept":79,"cut":false,"hidden":false,"merged":[[3,16,7,18],[9,16,11,18],[12,16,15,18],[66,9,78,9],[4,1,4,3],[4,4,4,6],[4,9,4,14],[6,9,18,9],[21,9,33,9],[36,9,48,9],[47,0,47,6],[48,0,51,6],[51,9,63,9],[18,4,18,6]]}
[{"$f":"+'Cover Page'!$B$29","v":"Annual Performance Report 2023"},null,null,null,{"$f":"+'Cover Page'!$B$33","v":"Peterborough Energy Recovery Facility"}]
[]
["Monitoring of Particulate matter emissions",null,null,"Whole Installation",null,null,"See  Notes in Cell Q3",null,null,{"$f":"+A3","v":"Monitoring of Particulate matter emissions"},null,null,null,"Per Combustion Line",null,null,"Notes:"]
[null,null,null,null,null,null,null,null,null,null,null,null,null,null,null,null,"User to add logic to complete Whole installation, Table A5:G18. From the data in Per Combustion Line, Table J6:O79, subject to No. of lines installed"]
["mg/Nm3","1/2 Hourly Reference Periods",null,null,"Daily Reference Periods"]
[{"$f":"+'Cover Page'!C39","v":2023},"1/2 hourly PM ELV","Monthly 1/2 hourly mean","Highest 1/2 hourly maximum","Daily PM ELV*","Monthly daily mean","Highest daily maximum",null,null,{"$f":"+A6","v":2023},"mg/Nm3","Monthly 1/2 hourly mean","Monthly 1/2 hourly maximum","Monthly daily mean","Monthly daily maximum"]
["Jan",30,{"$f":"L7","v":2.8},{"$f":"M7","v":16.100000000000001},10,{"$f":"N7","v":2.7},{"$f":"O7","v":6.4},null,null,"A1","Jan",2.8,16.100000000000001,2.7,6.4]
["Feb",30,{"$f":"L8","v":4.4000000000000004},{"$f":"M8","v":19},10,{"$f":"N8","v":4.3},{"$f":"O8","v":8.6999999999999993},null,null,null,"Feb",4.4000000000000004,19,4.3,8.6999999999999993]
["Mar",30,5,19.7,10,5,8.6,null,null,null,"Mar",5,19.7,5,8.6,null,"Whole Installation table A5:G18:"]
["Apr",30,3,13.9,10,2.9,4.9000000000000004,null,null,null,"Apr",3,13.9,2.9,4.9000000000000004,null,"Mean: for 1/2 hourly and daily periods calculate mean of values across all operational combustion lines for the month"]
["May",30,1.6,5.6,10,1.6,2.6,null,null,null,"May",1.6,5.6,1.6,2.6]
["Jun",30,4.9000000000000004,33.799999999999997,10,4.5,9.3000000000000007,null,null,null,"Jun",4.9000000000000004,33.799999999999997,4.5,9.3000000000000007]
["Jul",30,1.6,24.4,10,1.4,5.2,null,null,null,"Jul",1.6,24.4,1.4,5.2,null,"Maximum: for 1/2 hourly and daily periods use the highest value across all operational combustion lines for the month"]
["Aug",30,0.3,4.3,10,0.2,1.8,null,null,null,"Aug",0.3,4.3,0.2,1.8]
["Sep",30,0,0.7,10,0,0.1,null,null,null,"Sep",0,0.7,0,0.1]
["Oct",30,0,2.2000000000000002,10,0,0.2,null,null,null,"Oct",0,2.2000000000000002,0,0.2]
["Nov",30,0.9,10.6,10,0.9,1.9,null,null,null,"Nov",0.9,10.6,0.9,1.9]
["Dec",30,1.4,9.6,5,1.4,3.1,null,null,null,"Dec",1.4,9.6,1.4,3.1]
[null,null,null,null,"* ELV reduced to 5 mg/Nm3 on 3 December 2023",null,null,null,null,null,"Annual",{"$f":"AVERAGE(L7:L18)","v":2.1583333333333337},{"$f":"MAX(M7:M18)","v":33.799999999999997},{"$f":"AVERAGE(N7:N18)","v":2.0749999999999997},{"$f":"MAX(O7:O18)","v":9.3000000000000007}]
[]
[null,null,null,null,null,null,null,null,null,{"$f":"+A6","v":2023},"mg/Nm3","Monthly 1/2 hourly mean","Monthly 1/2 hourly maximum","Monthly daily mean","Monthly daily maximum"]
[null,null,null,null,null,null,null,null,null,"A2","Jan"]
[null,null,null,null,null,null,null,null,null,null,"Feb"]
[null,null,null,null,null,null,null,null,null,null,"Mar"]
[null,null,null,null,null,null,null,null,null,null,"Apr"]
[null,null,null,null,null,null,null,null,null,null,"May"]
[null,null,null,null,null,null,null,null,null,null,"Jun"]
[null,null,null,null,null,null,null,null,null,null,"Jul"]
[null,null,null,null,null,null,null,null,null,null,"Aug"]
[null,null,null,null,null,null,null,null,null,null,"Sep"]
[null,null,null,null,null,null,null,null,null,null,"Oct"]
[null,null,null,null,null,null,null,null,null,null,"Nov"]
[null,null,null,null,null,null,null,null,null,null,"Dec"]
[null,null,null,null,null,null,null,null,null,null,"Annual",{"$f":"AVERAGE(L22:L33)","v":{"$error":"#DIV/0!"}},{"$f":"MAX(M22:M33)","v":0},{"$f":"AVERAGE(N22:N33)","v":{"$error":"#DIV/0!"}},{"$f":"MAX(O22:O33)","v":0}]
[]
[null,null,null,null,null,null,null,null,null,{"$f":"+A6","v":2023},"mg/Nm3","Monthly 1/2 hourly mean","Monthly 1/2 hourly maximum","Monthly daily mean","Monthly daily maximum"]
[null,null,null,null,null,null,null,null,null,"A3","Jan"]
[null,null,null,null,null,null,null,null,null,null,"Feb"]
[null,null,null,null,null,null,null,null,null,null,"Mar"]
[null,null,null,null,null,null,null,null,null,null,"Apr"]
[null,null,null,null,null,null,null,null,null,null,"May"]
[null,null,null,null,null,null,null,null,null,null,"Jun"]
[null,null,null,null,null,null,null,null,null,null,"Jul"]
[null,null,null,null,null,null,null,null,null,null,"Aug"]
[null,null,null,null,null,null,null,null,null,null,"Sep"]
[null,null,null,null,null,null,null,null,null,null,"Oct"]
[null,null,null,null,null,null,null,null,null,null,"Nov"]
["Comments :",null,null,null,null,null,null,null,null,null,"Dec"]
[null,null,null,null,null,null,null,null,null,null,"Annual",{"$f":"AVERAGE(L37:L48)","v":{"$error":"#DIV/0!"}},{"$f":"MAX(M37:M48)","v":0},{"$f":"AVERAGE(N37:N48)","v":{"$error":"#DIV/0!"}},{"$f":"MAX(O37:O48)","v":0}]
[]
[null,null,null,null,null,null,null,null,null,{"$f":"+A6","v":2023},"mg/Nm3","Monthly 1/2 hourly mean","Monthly 1/2 hourly maximum","Monthly daily mean","Monthly daily maximum"]
[null,null,null,null,null,null,null,null,null,"A4","Jan"]
[null,null,null,null,null,null,null,null,null,null,"Feb"]
[null,null,null,null,null,null,null,null,null,null,"Mar"]
[null,null,null,null,null,null,null,null,null,null,"Apr"]
[null,null,null,null,null,null,null,null,null,null,"May"]
[null,null,null,null,null,null,null,null,null,null,"Jun"]
[null,null,null,null,null,null,null,null,null,null,"Jul"]
[null,null,null,null,null,null,null,null,null,null,"Aug"]
[null,null,null,null,null,null,null,null,null,null,"Sep"]
[null,null,null,null,null,null,null,null,null,null,"Oct"]
[null,null,null,null,null,null,null,null,null,null,"Nov"]
[null,null,null,null,null,null,null,null,null,null,"Dec"]
[null,null,null,null,null,null,null,null,null,null,"Annual",{"$f":"AVERAGE(L52:L63)","v":{"$error":"#DIV/0!"}},{"$f":"MAX(M52:M63)","v":0},{"$f":"AVERAGE(N52:N63)","v":{"$error":"#DIV/0!"}},{"$f":"MAX(O52:O63)","v":0}]
[]
[null,null,null,null,null,null,null,null,null,{"$f":"+A6","v":2023},"mg/Nm3","Monthly 1/2 hourly mean","Monthly 1/2 hourly maximum","Monthly daily mean","Monthly daily maximum"]
[null,null,null,null,null,null,null,null,null,"A5","Jan"]
[null,null,null,null,null,null,null,null,null,null,"Feb"]
[null,null,null,null,null,null,null,null,null,null,"Mar"]
[null,null,null,null,null,null,null,null,null,null,"Apr"]
[null,null,null,null,null,null,null,null,null,null,"May"]
[null,null,null,null,null,null,null,null,null,null,"Jun"]
[null,null,null,null,null,null,null,null,null,null,"Jul"]
[null,null,null,null,null,null,null,null,null,null,"Aug"]
[null,null,null,null,null,null,null,null,null,null,"Sep"]
[null,null,null,null,null,null,null,null,null,null,"Oct"]
[null,null,null,null,null,null,null,null,null,null,"Nov"]
[null,null,null,null,null,null,null,null,null,null,"Dec"]
[null,null,null,null,null,null,null,null,null,null,"Annual",{"$f":"AVERAGE(L67:L78)","v":{"$error":"#DIV/0!"}},{"$f":"MAX(M67:M78)","v":0},{"$f":"AVERAGE(N67:N78)","v":{"$error":"#DIV/0!"}},{"$f":"MAX(O67:O78)","v":0}]

{"sheet":"CO 0.5 hourly","index":20,"n_rows":82,"n_cols":17,"rows_kept":82,"cut":false,"hidden":false,"merged":[[4,0,5,6],[6,16,10,18],[12,16,14,18],[15,16,18,18],[69,9,81,9],[7,1,7,3],[7,4,7,6],[7,9,7,14],[9,9,21,9],[24,9,36,9],[39,9,51,9],[50,0,50,6],[51,0,54,6],[54,9,66,9]]}
[{"$f":"+'Cover Page'!$B$29","v":"Annual Performance Report 2023"},null,null,null,{"$f":"+'Cover Page'!$B$33","v":"Peterborough Energy Recovery Facility"}]
[]
["Monitoring of Carbon Monoxide (half hourly)",null,null,"Whole Installation",null,null,"See  Notes in Cell Q3",null,null,{"$f":"+A3","v":"Monitoring of Carbon Monoxide (half hourly)"},null,null,null,"Per Combustion Line",null,null,"Notes:"]
[]
["Please complete this tab for your plant if you have 1/2 hourly CO ELVs; otherwise, leave it blank and complete the CO 95% 10 min tab"]
[]
[null,null,null,null,null,null,null,null,null,null,null,null,null,null,null,null,"User to add logic to complete Whole installation, Table A5:G18. From the data in Per Combustion Line, Table J6:O79, subject to No. of lines installed"]
["mg/Nm3","1/2 Hourly Reference Periods",null,null,"Daily Reference Periods"]
[{"$f":"+'Cover Page'!C39","v":2023},"1/2 hourly CO ELV","Monthly 1/2 hourly mean","Highest 1/2 hourly maximum","Daily CO ELV","Monthly daily mean","Highest daily maximum",null,null,{"$f":"+A9","v":2023},"mg/Nm3","Monthly 1/2 hourly mean","Monthly 1/2 hourly maximum","Monthly daily mean","Monthly daily maximum"]
["Jan",100,{"$f":"L10","v":2.7},{"$f":"M10","v":129.6},50,{"$f":"N10","v":2.7},{"$f":"O10","v":4.8},null,null,"A1","Jan",2.7,129.6,2.7,4.8]
["Feb",{"$f":"+B10","v":100},{"$f":"L11","v":2.2999999999999998},{"$f":"M11","v":28},{"$f":"+E10","v":50},{"$f":"N11","v":2.2999999999999998},{"$f":"O11","v":4.4000000000000004},null,null,null,"Feb",2.2999999999999998,28,2.2999999999999998,4.4000000000000004]
["Mar",{"$f":"+B11","v":100},2.5,67.3,{"$f":"+E11","v":50},2.5,4.0999999999999996,null,null,null,"Mar",2.5,67.3,2.5,4.0999999999999996,null,"Whole Installation table A5:G18:"]
["Apr",100,2.5,113,50,2.5,5.3,null,null,null,"Apr",2.5,113,2.5,5.3,null,"Mean: for 1/2 hourly and daily periods calculate mean of values across all operational combustion lines for the month"]
["May",100,2.6,76.8,50,2.6,4,null,null,null,"May",2.6,76.8,2.6,4]
["Jun",100,2.6,33.4,50,2.6,3.3,null,null,null,"Jun",2.6,33.4,2.6,3.3]
["Jul",100,2.6,90.7,50,2.6,4,null,null,null,"Jul",2.6,90.7,2.6,4,null,"Maximum: for 1/2 hourly and daily periods use the highest value across all operational combustion lines for the month"]
["Aug",100,2.5,129.30000000000001,50,2.5,5.4,null,null,null,"Aug",2.5,129.30000000000001,2.5,5.4]
["Sep",100,3.7,94.1,50,3.2,5.6,null,null,null,"Sep",3.7,94.1,3.2,5.6]
["Oct",100,2.4,49.1,50,2.4,3.5,null,null,null,"Oct",2.4,49.1,2.4,3.5]
["Nov",100,2.6,65.099999999999994,50,2.6,4.0999999999999996,null,null,null,"Nov",2.6,65.099999999999994,2.6,4.0999999999999996]
["Dec",100,2.4,47.1,50,2.2999999999999998,4.5,null,null,null,"Dec",2.4,47.1,2.2999999999999998,4.5]
[null,null,null,null,null,null,null,null,null,null,"Annual",{"$f":"AVERAGE(L10:L21)","v":2.6166666666666667},{"$f":"MAX(M10:M21)","v":129.6},{"$f":"AVERAGE(N10:N21)","v":2.5666666666666669},{"$f":"MAX(O10:O21)","v":5.6}]
[]
[null,null,null,null,null,null,null,null,null,{"$f":"+A9","v":2023},"mg/Nm3","Monthly 1/2 hourly mean","Monthly 1/2 hourly maximum","Monthly daily mean","Monthly daily maximum"]
[null,null,null,null,null,null,null,null,null,"A2","Jan"]
[null,null,null,null,null,null,null,null,null,null,"Feb"]
[null,null,null,null,null,null,null,null,null,null,"Mar"]
[null,null,null,null,null,null,null,null,null,null,"Apr"]
[null,null,null,null,null,null,null,null,null,null,"May"]
[null,null,null,null,null,null,null,null,null,null,"Jun"]
[null,null,null,null,null,null,null,null,null,null,"Jul"]
[null,null,null,null,null,null,null,null,null,null,"Aug"]
[null,null,null,null,null,null,null,null,null,null,"Sep"]
[null,null,null,null,null,null,null,null,null,null,"Oct"]
[null,null,null,null,null,null,null,null,null,null,"Nov"]
[null,null,null,null,null,null,null,null,null,null,"Dec"]
[null,null,null,null,null,null,null,null,null,null,"Annual",{"$f":"AVERAGE(L25:L36)","v":{"$error":"#DIV/0!"}},{"$f":"MAX(M25:M36)","v":0},{"$f":"AVERAGE(N25:N36)","v":{"$error":"#DIV/0!"}},{"$f":"MAX(O25:O36)","v":0}]
[]
[null,null,null,null,null,null,null,null,null,{"$f":"+A9","v":2023},"mg/Nm3","Monthly 1/2 hourly mean","Monthly 1/2 hourly maximum","Monthly daily mean","Monthly daily maximum"]
[null,null,null,null,null,null,null,null,null,"A3","Jan"]
[null,null,null,null,null,null,null,null,null,null,"Feb"]
[null,null,null,null,null,null,null,null,null,null,"Mar"]
[null,null,null,null,null,null,null,null,null,null,"Apr"]
[null,null,null,null,null,null,null,null,null,null,"May"]
[null,null,null,null,null,null,null,null,null,null,"Jun"]
[null,null,null,null,null,null,null,null,null,null,"Jul"]
[null,null,null,null,null,null,null,null,null,null,"Aug"]
[null,null,null,null,null,null,null,null,null,null,"Sep"]
[null,null,null,null,null,null,null,null,null,null,"Oct"]
[null,null,null,null,null,null,null,null,null,null,"Nov"]
["Comments :",null,null,null,null,null,null,null,null,null,"Dec"]
[null,null,null,null,null,null,null,null,null,null,"Annual",{"$f":"AVERAGE(L40:L51)","v":{"$error":"#DIV/0!"}},{"$f":"MAX(M40:M51)","v":0},{"$f":"AVERAGE(N40:N51)","v":{"$error":"#DIV/0!"}},{"$f":"MAX(O40:O51)","v":0}]
[]
[null,null,null,null,null,null,null,null,null,{"$f":"+A9","v":2023},"mg/Nm3","Monthly 1/2 hourly mean","Monthly 1/2 hourly maximum","Monthly daily mean","Monthly daily maximum"]
[null,null,null,null,null,null,null,null,null,"A4","Jan"]
[null,null,null,null,null,null,null,null,null,null,"Feb"]
[null,null,null,null,null,null,null,null,null,null,"Mar"]
[null,null,null,null,null,null,null,null,null,null,"Apr"]
[null,null,null,null,null,null,null,null,null,null,"May"]
[null,null,null,null,null,null,null,null,null,null,"Jun"]
[null,null,null,null,null,null,null,null,null,null,"Jul"]
[null,null,null,null,null,null,null,null,null,null,"Aug"]
[null,null,null,null,null,null,null,null,null,null,"Sep"]
[null,null,null,null,null,null,null,null,null,null,"Oct"]
[null,null,null,null,null,null,null,null,null,null,"Nov"]
[null,null,null,null,null,null,null,null,null,null,"Dec"]
[null,null,null,null,null,null,null,null,null,null,"Annual",{"$f":"AVERAGE(L55:L66)","v":{"$error":"#DIV/0!"}},{"$f":"MAX(M55:M66)","v":0},{"$f":"AVERAGE(N55:N66)","v":{"$error":"#DIV/0!"}},{"$f":"MAX(O55:O66)","v":0}]
[]
[null,null,null,null,null,null,null,null,null,{"$f":"+A9","v":2023},"mg/Nm3","Monthly 1/2 hourly mean","Monthly 1/2 hourly maximum","Monthly daily mean","Monthly daily maximum"]
[null,null,null,null,null,null,null,null,null,"A5","Jan"]
[null,null,null,null,null,null,null,null,null,null,"Feb"]
[null,null,null,null,null,null,null,null,null,null,"Mar"]
[null,null,null,null,null,null,null,null,null,null,"Apr"]
[null,null,null,null,null,null,null,null,null,null,"May"]
[null,null,null,null,null,null,null,null,null,null,"Jun"]
[null,null,null,null,null,null,null,null,null,null,"Jul"]
[null,null,null,null,null,null,null,null,null,null,"Aug"]
[null,null,null,null,null,null,null,null,null,null,"Sep"]
[null,null,null,null,null,null,null,null,null,null,"Oct"]
[null,null,null,null,null,null,null,null,null,null,"Nov"]
[null,null,null,null,null,null,null,null,null,null,"Dec"]
[null,null,null,null,null,null,null,null,null,null,"Annual",{"$f":"AVERAGE(L70:L81)","v":{"$error":"#DIV/0!"}},{"$f":"MAX(M70:M81)","v":0},{"$f":"AVERAGE(N70:N81)","v":{"$error":"#DIV/0!"}},{"$f":"MAX(O70:O81)","v":0}]

{"sheet":"CO 95% 10 min","index":21,"n_rows":82,"n_cols":19,"rows_kept":82,"cut":false,"hidden":false,"merged":[[4,0,5,7],[6,18,10,20],[12,18,14,20],[15,18,18,20],[69,10,81,10],[7,1,7,4],[7,5,7,7],[7,10,7,16],[9,10,21,10],[24,10,36,10],[39,10,51,10],[50,0,50,7],[51,0,54,7],[54,10,66,10]]}
[{"$f":"+'Cover Page'!$B$29","v":"Annual Performance Report 2023"},null,null,null,{"$f":"+'Cover Page'!$B$33","v":"Peterborough Energy Recovery Facility"}]
[]
["Monitoring of Carbon Monoxide (10-minute avg)",null,null,null,"Whole Installation",null,null,"See  Notes in Cell S3",null,{"$f":"+A3","v":"Monitoring of Carbon Monoxide (10-minute avg)"},null,null,null,null,"Per Combustion Line",null,"Notes:",null,"Notes:"]
[]
["Please complete this tab for your plant if you have 10-minute average CO ELVs; otherwise, leave it blank and complete the CO 0.5 hourly tab"]
[]
[null,null,null,null,null,null,null,null,null,null,null,null,null,null,null,null,null,null,"User to add logic to complete Whole installation, Table A5:H18. From the data in Per Combustion Line, Table K6:Q79, subject to No. of lines installed"]
["mg/Nm3","10-minute Reference Periods",null,null,null,"Daily Reference Periods"]
[{"$f":"+'Cover Page'!C39","v":2023},"95%ile 10-min avg CO ELV","95%ile 10-min avg maximum","Monthly CO 10-min avg mean","10-min avg maximum","Daily CO ELV","Monthly daily mean","Highest daily maximum",null,null,{"$f":"+A9","v":2023},"mg/Nm3","95%ile 10-min avg maximum","Monthly CO 10-min avg mean","10-min avg maximum","Monthly daily mean","Monthly daily maximum"]
["Jan",150,{"$f":"M10","v":11.2},{"$f":"N10","v":2.7},{"$f":"O10","v":384.7},50,{"$f":"P10","v":2.7},{"$f":"Q10","v":4.8},null,null,"A1","Jan",11.2,2.7,384.7,2.7,4.8]
["Feb",{"$f":"+B10","v":150},{"$f":"M11","v":19.3},{"$f":"N11","v":2.2999999999999998},{"$f":"O11","v":41.8},{"$f":"+F10","v":50},{"$f":"P11","v":2.2999999999999998},{"$f":"Q11","v":4.4000000000000004},null,null,null,"Feb",19.3,2.2999999999999998,41.8,2.2999999999999998,4.4000000000000004]
["Mar",{"$f":"+B11","v":150},15,2.5,195.7,{"$f":"+F11","v":50},2.5,4.0999999999999996,null,null,null,"Mar",15,2.5,195.7,2.5,4.0999999999999996,null,"Whole Installation table A5:H18:"]
["Apr",150,7.3,2.5,334.5,50,2.5,5.3,null,null,null,"Apr",7.3,2.5,334.5,2.5,5.3,null,"Mean: for 10-min and daily periods use average of all operational combustion lines."]
["May",150,4.8,2.6,172.5,50,2.5,4,null,null,null,"May",4.8,2.6,172.5,2.5,4]
["Jun",150,6,2.6,72.400000000000006,50,2.5,3.3,null,null,null,"Jun",6,2.6,72.400000000000006,2.5,3.3]
["Jul",150,18.5,2.6,223.8,50,2.5,4,null,null,null,"Jul",18.5,2.6,223.8,2.5,4,null,"Maximum: for 10-min and daily periods use the highest of all operational combustion lines in any month."]
["Aug",150,5.5,2.5,377.1,50,2.5,5.4,null,null,null,"Aug",5.5,2.5,377.1,2.5,5.4]
["Sep",150,30.4,3.7,277.60000000000002,50,3.2,5.6,null,null,null,"Sep",30.4,3.7,277.60000000000002,3.2,5.6]
["Oct",150,9.3000000000000007,2.4,129,50,2.4,3.5,null,null,null,"Oct",9.3000000000000007,2.4,129,2.4,3.5]
["Nov",150,11,2.6,204.6,50,2.6,4.0999999999999996,null,null,null,"Nov",11,2.6,204.6,2.6,4.0999999999999996]
["Dec",150,11.9,2.4,135,50,2.2999999999999998,4.5,null,null,null,"Dec",11.9,2.4,135,2.2999999999999998,4.5]
[null,null,null,null,null,null,null,null,null,null,null,"Annual",{"$f":"AVERAGE(M10:M21)","v":12.516666666666667},{"$f":"AVERAGE(N10:N21)","v":2.6166666666666667},{"$f":"MAX(O10:O21)","v":384.7},{"$f":"AVERAGE(P10:P21)","v":2.5416666666666665},{"$f":"MAX(Q10:Q21)","v":5.6}]
[]
[null,null,null,null,null,null,null,null,null,null,{"$f":"+A9","v":2023},"mg/Nm3","95%ile 10-min avg maximum","Monthly CO 10-min avg mean","10-min avg maximum","Monthly daily mean","Monthly daily maximum"]
[null,null,null,null,null,null,null,null,null,null,"A2","Jan"]
[null,null,null,null,null,null,null,null,null,null,null,"Feb"]
[null,null,null,null,null,null,null,null,null,null,null,"Mar"]
[null,null,null,null,null,null,null,null,null,null,null,"Apr"]
[null,null,null,null,null,null,null,null,null,null,null,"May"]
[null,null,null,null,null,null,null,null,null,null,null,"Jun"]
[null,null,null,null,null,null,null,null,null,null,null,"Jul"]
[null,null,null,null,null,null,null,null,null,null,null,"Aug"]
[null,null,null,null,null,null,null,null,null,null,null,"Sep"]
[null,null,null,null,null,null,null,null,null,null,null,"Oct"]
[null,null,null,null,null,null,null,null,null,null,null,"Nov"]
[null,null,null,null,null,null,null,null,null,null,null,"Dec"]
[null,null,null,null,null,null,null,null,null,null,null,"Annual",{"$f":"AVERAGE(M25:M36)","v":{"$error":"#DIV/0!"}},null,{"$f":"MAX(O25:O36)","v":0},{"$f":"AVERAGE(P25:P36)","v":{"$error":"#DIV/0!"}},{"$f":"MAX(Q25:Q36)","v":0}]
[]
[null,null,null,null,null,null,null,null,null,null,{"$f":"+A9","v":2023},"mg/Nm3","95%ile 10-min avg maximum","Monthly CO 10-min avg mean","10-min avg maximum","Monthly daily mean","Monthly daily maximum"]
[null,null,null,null,null,null,null,null,null,null,"A3","Jan"]
[null,null,null,null,null,null,null,null,null,null,null,"Feb"]
[null,null,null,null,null,null,null,null,null,null,null,"Mar"]
[null,null,null,null,null,null,null,null,null,null,null,"Apr"]
[null,null,null,null,null,null,null,null,null,null,null,"May"]
[null,null,null,null,null,null,null,null,null,null,null,"Jun"]
[null,null,null,null,null,null,null,null,null,null,null,"Jul"]
[null,null,null,null,null,null,null,null,null,null,null,"Aug"]
[null,null,null,null,null,null,null,null,null,null,null,"Sep"]
[null,null,null,null,null,null,null,null,null,null,null,"Oct"]
[null,null,null,null,null,null,null,null,null,null,null,"Nov"]
["Comments :",null,null,null,null,null,null,null,null,null,null,"Dec"]
["Environment Agency explanatory note: The 10-minute average ELV is based on the “95th percentile”. In this case this means that 95% of the 10 minute averages in the relevant 24-hour period (i.e. 137) must be below 150 mg/Nm3, and 5% (i.e. 7) are allowed to be any value above 150 mg/Nm3. Whilst we expect operators to minimise CO emissions at all times, it is perfectly acceptable for the value of the maximum 10-minute average to be above 150 mg/Nm3, provided the 95th percentile ELV has been met for that period. ",null,null,null,null,null,null,null,null,null,null,"Annual",{"$f":"AVERAGE(M40:M51)","v":{"$error":"#DIV/0!"}},null,{"$f":"MAX(O40:O51)","v":0},{"$f":"AVERAGE(P40:P51)","v":{"$error":"#DIV/0!"}},{"$f":"MAX(Q40:Q51)","v":0}]
[]
[null,null,null,null,null,null,null,null,null,null,{"$f":"+A9","v":2023},"mg/Nm3","95%ile 10-min avg maximum","Monthly CO 10-min avg mean","10-min avg maximum","Monthly daily mean","Monthly daily maximum"]
[null,null,null,null,null,null,null,null,null,null,"A4","Jan"]
[null,null,null,null,null,null,null,null,null,null,null,"Feb"]
[null,null,null,null,null,null,null,null,null,null,null,"Mar"]
[null,null,null,null,null,null,null,null,null,null,null,"Apr"]
[null,null,null,null,null,null,null,null,null,null,null,"May"]
[null,null,null,null,null,null,null,null,null,null,null,"Jun"]
[null,null,null,null,null,null,null,null,null,null,null,"Jul"]
[null,null,null,null,null,null,null,null,null,null,null,"Aug"]
[null,null,null,null,null,null,null,null,null,null,null,"Sep"]
[null,null,null,null,null,null,null,null,null,null,null,"Oct"]
[null,null,null,null,null,null,null,null,null,null,null,"Nov"]
[null,null,null,null,null,null,null,null,null,null,null,"Dec"]
[null,null,null,null,null,null,null,null,null,null,null,"Annual",{"$f":"AVERAGE(M55:M66)","v":{"$error":"#DIV/0!"}},null,{"$f":"MAX(O55:O66)","v":0},{"$f":"AVERAGE(P55:P66)","v":{"$error":"#DIV/0!"}},{"$f":"MAX(Q55:Q66)","v":0}]
[]
[null,null,null,null,null,null,null,null,null,null,{"$f":"+A9","v":2023},"mg/Nm3","95%ile 10-min avg maximum","Monthly CO 10-min avg mean","10-min avg maximum","Monthly daily mean","Monthly daily maximum"]
[null,null,null,null,null,null,null,null,null,null,"A5","Jan"]
[null,null,null,null,null,null,null,null,null,null,null,"Feb"]
[null,null,null,null,null,null,null,null,null,null,null,"Mar"]
[null,null,null,null,null,null,null,null,null,null,null,"Apr"]
[null,null,null,null,null,null,null,null,null,null,null,"May"]
[null,null,null,null,null,null,null,null,null,null,null,"Jun"]
[null,null,null,null,null,null,null,null,null,null,null,"Jul"]
[null,null,null,null,null,null,null,null,null,null,null,"Aug"]
[null,null,null,null,null,null,null,null,null,null,null,"Sep"]
[null,null,null,null,null,null,null,null,null,null,null,"Oct"]
[null,null,null,null,null,null,null,null,null,null,null,"Nov"]
[null,null,null,null,null,null,null,null,null,null,null,"Dec"]
[null,null,null,null,null,null,null,null,null,null,null,"Annual",{"$f":"AVERAGE(M70:M81)","v":{"$error":"#DIV/0!"}},null,{"$f":"MAX(O70:O81)","v":0},{"$f":"AVERAGE(P70:P81)","v":{"$error":"#DIV/0!"}},{"$f":"MAX(Q70:Q81)","v":0}]

{"sheet":"NH3","index":22,"n_rows":79,"n_cols":17,"rows_kept":79,"cut":false,"hidden":false,"merged":[[3,16,7,18],[9,16,11,18],[12,16,15,18],[66,9,78,9],[4,1,4,3],[4,4,4,6],[4,9,4,14],[6,9,18,9],[21,9,33,9],[36,9,48,9],[47,0,47,6],[48,0,51,6],[51,9,63,9],[18,4,18,6]]}
[{"$f":"+'Cover Page'!$B$29","v":"Annual Performance Report 2023"},null,null,null,{"$f":"+'Cover Page'!$B$33","v":"Peterborough Energy Recovery Facility"}]
[]
["Monitoring of Ammnonia emissions ",null,null,"Whole Installation",null,null,"See  Notes in Cell Q3",null,null,{"$f":"+A3","v":"Monitoring of Ammnonia emissions "},null,null,null,"Per Combustion Line",null,null,"Notes:"]
[null,null,null,null,null,null,null,null,null,null,null,null,null,null,null,null,"User to add logic to complete Whole installation, Table A5:G18. From the data in Per Combustion Line, Table J6:O79, subject to No. of lines installed"]
["mg/Nm3","1/2 Hourly Reference Periods",null,null,"Daily Reference Periods"]
[{"$f":"+'Cover Page'!C39","v":2023},"1/2 hourly NH3 ELV","Monthly 1/2 hourly mean","Highest 1/2 hourly maximum","Daily NH3 ELV*","Monthly daily mean","Highest daily maximum",null,null,{"$f":"+A6","v":2023},"mg/Nm3","Monthly 1/2 hourly mean","Monthly 1/2 hourly maximum","Monthly daily mean","Monthly daily maximum"]
["Jan","None",{"$f":"L7","v":6.6},{"$f":"M7","v":73.099999999999994},"None",{"$f":"N7","v":5.8},{"$f":"O7","v":16},null,null,"A1","Jan",6.6,73.099999999999994,5.8,16]
["Feb",{"$f":"+B7","v":"None"},{"$f":"L8","v":4.2},{"$f":"M8","v":21.2},"None",{"$f":"N8","v":4.2},{"$f":"O8","v":5.7},null,null,null,"Feb",4.2,21.2,4.2,5.7]
["Mar",{"$f":"+B8","v":"None"},4.5999999999999996,23.6,"None",4.5999999999999996,7,null,null,null,"Mar",4.5999999999999996,23.6,4.5999999999999996,7,null,"Whole Installation table A5:G18:"]
["Apr","None",4.9000000000000004,26.2,"None",4.8,6.2,null,null,null,"Apr",4.9000000000000004,26.2,4.8,6.2,null,"Mean: for 1/2 hourly and daily periods calculate mean of values across all operational combustion lines for the month"]
["May","None",7.5,48.9,"None",7.6,19.899999999999999,null,null,null,"May",7.5,48.9,7.6,19.899999999999999]
["Jun","None",10.5,41.4,"None",10.9,22.7,null,null,null,"Jun",10.5,41.4,10.9,22.7]
["Jul","None",16.8,54.1,"None",16.899999999999999,28.6,null,null,null,"Jul",16.8,54.1,16.899999999999999,28.6,null,"Maximum: for 1/2 hourly and daily periods use the highest value across all operational combustion lines for the month"]
["Aug","None",5.0999999999999996,21.1,"None",5.0999999999999996,8.1,null,null,null,"Aug",5.0999999999999996,21.1,5.0999999999999996,8.1]
["Sep","None",10.4,43.2,"None",9.6999999999999993,27.8,null,null,null,"Sep",10.4,43.2,9.6999999999999993,27.8]
["Oct","None",1.6,11,"None",1.6,2.9,null,null,null,"Oct",1.6,11,1.6,2.9]
["Nov","None",1.6,16.399999999999999,"None",1.6,3.7,null,null,null,"Nov",1.6,16.399999999999999,1.6,3.7]
["Dec","None",1.1000000000000001,27.6,15,1,3.1,null,null,null,"Dec",1.1000000000000001,27.6,1,3.1]
[null,null,null,null,"* ELV came into force on 3 December 2023",null,null,null,null,null,"Annual",{"$f":"AVERAGE(L7:L18)","v":6.2416666666666645},{"$f":"MAX(M7:M18)","v":73.099999999999994},{"$f":"AVERAGE(N7:N18)","v":6.1499999999999986},{"$f":"MAX(O7:O18)","v":28.6}]
[]
[null,null,null,null,null,null,null,null,null,{"$f":"+A6","v":2023},"mg/Nm3","Monthly 1/2 hourly mean","Monthly 1/2 hourly maximum","Monthly daily mean","Monthly daily maximum"]
[null,null,null,null,null,null,null,null,null,"A2","Jan"]
[null,null,null,null,null,null,null,null,null,null,"Feb"]
[null,null,null,null,null,null,null,null,null,null,"Mar"]
[null,null,null,null,null,null,null,null,null,null,"Apr"]
[null,null,null,null,null,null,null,null,null,null,"May"]
[null,null,null,null,null,null,null,null,null,null,"Jun"]
[null,null,null,null,null,null,null,null,null,null,"Jul"]
[null,null,null,null,null,null,null,null,null,null,"Aug"]
[null,null,null,null,null,null,null,null,null,null,"Sep"]
[null,null,null,null,null,null,null,null,null,null,"Oct"]
[null,null,null,null,null,null,null,null,null,null,"Nov"]
[null,null,null,null,null,null,null,null,null,null,"Dec"]
[null,null,null,null,null,null,null,null,null,null,"Annual",{"$f":"AVERAGE(L22:L33)","v":{"$error":"#DIV/0!"}},{"$f":"MAX(M22:M33)","v":0},{"$f":"AVERAGE(N22:N33)","v":{"$error":"#DIV/0!"}},{"$f":"MAX(O22:O33)","v":0}]
[]
[null,null,null,null,null,null,null,null,null,{"$f":"+A6","v":2023},"mg/Nm3","Monthly 1/2 hourly mean","Monthly 1/2 hourly maximum","Monthly daily mean","Monthly daily maximum"]
[null,null,null,null,null,null,null,null,null,"A3","Jan"]
[null,null,null,null,null,null,null,null,null,null,"Feb"]
[null,null,null,null,null,null,null,null,null,null,"Mar"]
[null,null,null,null,null,null,null,null,null,null,"Apr"]
[null,null,null,null,null,null,null,null,null,null,"May"]
[null,null,null,null,null,null,null,null,null,null,"Jun"]
[null,null,null,null,null,null,null,null,null,null,"Jul"]
[null,null,null,null,null,null,null,null,null,null,"Aug"]
[null,null,null,null,null,null,null,null,null,null,"Sep"]
[null,null,null,null,null,null,null,null,null,null,"Oct"]
[null,null,null,null,null,null,null,null,null,null,"Nov"]
["Comments :",null,null,null,null,null,null,null,null,null,"Dec"]
["An indicated ELV value of zero in the table above means that no ammonia limit is/was set in the permit.  ",null,null,null,null,null,null,null,null,null,"Annual",{"$f":"AVERAGE(L37:L48)","v":{"$error":"#DIV/0!"}},{"$f":"MAX(M37:M48)","v":0},{"$f":"AVERAGE(N37:N48)","v":{"$error":"#DIV/0!"}},{"$f":"MAX(O37:O48)","v":0}]
[]
[null,null,null,null,null,null,null,null,null,{"$f":"+A6","v":2023},"mg/Nm3","Monthly 1/2 hourly mean","Monthly 1/2 hourly maximum","Monthly daily mean","Monthly daily maximum"]
[null,null,null,null,null,null,null,null,null,"A4","Jan"]
[null,null,null,null,null,null,null,null,null,null,"Feb"]
[null,null,null,null,null,null,null,null,null,null,"Mar"]
[null,null,null,null,null,null,null,null,null,null,"Apr"]
[null,null,null,null,null,null,null,null,null,null,"May"]
[null,null,null,null,null,null,null,null,null,null,"Jun"]
[null,null,null,null,null,null,null,null,null,null,"Jul"]
[null,null,null,null,null,null,null,null,null,null,"Aug"]
[null,null,null,null,null,null,null,null,null,null,"Sep"]
[null,null,null,null,null,null,null,null,null,null,"Oct"]
[null,null,null,null,null,null,null,null,null,null,"Nov"]
[null,null,null,null,null,null,null,null,null,null,"Dec"]
[null,null,null,null,null,null,null,null,null,null,"Annual",{"$f":"AVERAGE(L52:L63)","v":{"$error":"#DIV/0!"}},{"$f":"MAX(M52:M63)","v":0},{"$f":"AVERAGE(N52:N63)","v":{"$error":"#DIV/0!"}},{"$f":"MAX(O52:O63)","v":0}]
[]
[null,null,null,null,null,null,null,null,null,{"$f":"+A6","v":2023},"mg/Nm3","Monthly 1/2 hourly mean","Monthly 1/2 hourly maximum","Monthly daily mean","Monthly daily maximum"]
[null,null,null,null,null,null,null,null,null,"A5","Jan"]
[null,null,null,null,null,null,null,null,null,null,"Feb"]
[null,null,null,null,null,null,null,null,null,null,"Mar"]
[null,null,null,null,null,null,null,null,null,null,"Apr"]
[null,null,null,null,null,null,null,null,null,null,"May"]
[null,null,null,null,null,null,null,null,null,null,"Jun"]
[null,null,null,null,null,null,null,null,null,null,"Jul"]
[null,null,null,null,null,null,null,null,null,null,"Aug"]
[null,null,null,null,null,null,null,null,null,null,"Sep"]
[null,null,null,null,null,null,null,null,null,null,"Oct"]
[null,null,null,null,null,null,null,null,null,null,"Nov"]
[null,null,null,null,null,null,null,null,null,null,"Dec"]
[null,null,null,null,null,null,null,null,null,null,"Annual",{"$f":"AVERAGE(L67:L78)","v":{"$error":"#DIV/0!"}},{"$f":"MAX(M67:M78)","v":0},{"$f":"AVERAGE(N67:N78)","v":{"$error":"#DIV/0!"}},{"$f":"MAX(O67:O78)","v":0}]